Transaction Reference,Supplier Name,Line Value,Department,Category,Transaction Date,Year/Period,SME,Costs split between Mid Suffolk and Babergh District Councils Y/N,% of transaction apportioned to Babergh District Council
355227,ADVANCED CONTROLS & MANAGEMENT SYSTEMS L,"11,043.00",Sheltered Units-Gen.Imp,Improvements,01-Oct-21,2122/07,SME,N,
355035,AE WHITE SURFACING,"2,453.00",Building Services,Repairs,24-Sep-21,2122/07,SME,N,
355084,AGROCO TRAILERS,"2,290.00",Vehicle and Plant Renewals,Plant & Vehicle - Purchase,27-Sep-21,2122/07,SME,N,
354925,ANGLIAN WATER,"1,057.39",Water Sampling,Sampling & Analysis,21-Sep-21,2122/07,LGE,N,
422211,ANGLIAN WATER,24.97,"11 Market Place, Stowmarket",Water Rates - Metered,13-Oct-21,2122/07,LGE,N,
422211,ANGLIAN WATER,611.54,Creeting Rd Depot,Water Rates - Metered,13-Oct-21,2122/07,LGE,Y,50%
422211,ANGLIAN WATER,30.15,General/Supervision & Mgmt,Water Rates - Metered,13-Oct-21,2122/07,LGE,N,
422211,ANGLIAN WATER,121.14,Headquarters General,Water Rates - Metered,13-Oct-21,2122/07,LGE,N,
422211,ANGLIAN WATER,109.54,Open Spaces,Water Rates - Metered,13-Oct-21,2122/07,LGE,N,
422211,ANGLIAN WATER,226.5,Public Conveniences,Water Rates - Metered,13-Oct-21,2122/07,LGE,N,
422211,ANGLIAN WATER,3.9,Recycling Centre,Water Rates - Metered,13-Oct-21,2122/07,LGE,N,
422211,ANGLIAN WATER,3.9,Sewage Treatment Works,Water Rates - Metered,13-Oct-21,2122/07,LGE,N,
422211,ANGLIAN WATER,"2,650.38",Sheltered Accommodation,Water Rates - Metered,13-Oct-21,2122/07,LGE,N,
422211,ANGLIAN WATER,18.91,Tacon Close Eye TDP,Water Rates - Metered,13-Oct-21,2122/07,LGE,N,
422211,ANGLIAN WATER,42.85,Temporary Accommodation,Water Rates - Metered,13-Oct-21,2122/07,LGE,N,
422211,ANGLIAN WATER,39.87,Tenancy Services,Water Rates - Metered,13-Oct-21,2122/07,LGE,N,
422211,ANGLIAN WATER,9.38,Wingfield Barns,Water Rates - Metered,13-Oct-21,2122/07,LGE,N,
355615,APSE,"1,230.00",Food & Safety (General),Agency Staff,20-Oct-21,2122/07,LGE,Y,50%
355615,APSE,"1,230.00",Animal Welfare Licensing,Agency Staff,20-Oct-21,2122/07,LGE,Y,50%
355204,BINDER LTD,967.33,Sewage Treatment Works,Contracted Services,30-Sep-21,2122/07,SME,N,
355207,BINDER LTD,291.9,Sewage Treatment Works,Contracted Services,29-Sep-21,2122/07,SME,N,
355208,BINDER LTD,381.36,Sewage Treatment Works,Contracted Services,29-Sep-21,2122/07,SME,N,
355511,BINDER LTD,770.4,Sewage Treatment Works,Contracted Services,13-Oct-21,2122/07,SME,N,
355295,BLUE FLAME (COLCHESTER) LTD,"26,081.79",Planned Maint - Heating,Property Servicing,29-Sep-21,2122/07,SME,N,
355307,BLUE FLAME (COLCHESTER) LTD,"30,798.00",Central Heating,Improvements,01-Oct-21,2122/07,SME,N,
355329,BLUE FLAME (COLCHESTER) LTD,"26,081.79",Planned Maint - Heating,Property Servicing,07-Oct-21,2122/07,SME,N,
422201,BLUE FLAME (COLCHESTER) LTD,37.79,Housing Rechargeable Works,Repairs,06-Oct-21,2122/07,SME,N,
422201,BLUE FLAME (COLCHESTER) LTD,463.07,PV Panels,Contracted Services,06-Oct-21,2122/07,SME,N,
422201,BLUE FLAME (COLCHESTER) LTD,"27,371.00",Central Heating,Improvements,06-Oct-21,2122/07,SME,N,
422201,BLUE FLAME (COLCHESTER) LTD,"9,034.76",Smoke Alarms (Bbgh Standard),Improvements,06-Oct-21,2122/07,SME,N,
422201,BLUE FLAME (COLCHESTER) LTD,52.81,Voids Maintenance,Repairs,06-Oct-21,2122/07,SME,N,
422205,BLUE FLAME (COLCHESTER) LTD,80,Housing Rechargeable Works,Repairs,13-Oct-21,2122/07,SME,N,
422205,BLUE FLAME (COLCHESTER) LTD,326.56,PV Panels,Contracted Services,13-Oct-21,2122/07,SME,N,
422205,BLUE FLAME (COLCHESTER) LTD,1,Central Heating,Improvements,13-Oct-21,2122/07,SME,N,
422205,BLUE FLAME (COLCHESTER) LTD,"5,533.69",Planned Maint - Heating,Property Servicing,13-Oct-21,2122/07,SME,N,
422214,BLUE FLAME (COLCHESTER) LTD,40,Housing Rechargeable Works,Repairs,20-Oct-21,2122/07,SME,N,
422214,BLUE FLAME (COLCHESTER) LTD,22.02,Creeting Rd Depot,Repairs,20-Oct-21,2122/07,SME,Y,50%
422214,BLUE FLAME (COLCHESTER) LTD,94.46,PV Panels,Contracted Services,20-Oct-21,2122/07,SME,N,
422214,BLUE FLAME (COLCHESTER) LTD,"11,325.76",Planned Maint - Heating,Property Servicing,20-Oct-21,2122/07,SME,N,
422214,BLUE FLAME (COLCHESTER) LTD,312.88,Voids Maintenance,Repairs,20-Oct-21,2122/07,SME,N,
422214,BLUE FLAME (COLCHESTER) LTD,752.72,Sheltered Accommodation,Repairs,20-Oct-21,2122/07,SME,N,
422218,BLUE FLAME (COLCHESTER) LTD,143.89,Housing Rechargeable Works,Repairs,27-Oct-21,2122/07,SME,N,
422218,BLUE FLAME (COLCHESTER) LTD,"1,663.46",PV Panels,Contracted Services,27-Oct-21,2122/07,SME,N,
422218,BLUE FLAME (COLCHESTER) LTD,"8,390.50",Central Heating,Improvements,27-Oct-21,2122/07,SME,N,
422218,BLUE FLAME (COLCHESTER) LTD,33.7,Smoke Alarms (Bbgh Standard),Improvements,27-Oct-21,2122/07,SME,N,
422218,BLUE FLAME (COLCHESTER) LTD,"8,492.72",Planned Maint - Heating,Property Servicing,27-Oct-21,2122/07,SME,N,
422218,BLUE FLAME (COLCHESTER) LTD,253.76,Voids Maintenance,Repairs,27-Oct-21,2122/07,SME,N,
422218,BLUE FLAME (COLCHESTER) LTD,291.76,Disabled Facilities (Revenue),BMBS Repairs Work,27-Oct-21,2122/07,SME,N,
355219,BOWER FULLER,"3,909.62",Sheltered Accommodation,Fire Prevention,24-Sep-21,2122/07,SME,N,
355220,BOWER FULLER,"2,419.20",Sheltered Accommodation,Fire Prevention,24-Sep-21,2122/07,SME,N,
355225,BOWER FULLER,250.3,Sheltered Accommodation,Fire Prevention,14-Sep-21,2122/07,SME,N,
355566,AQUASAMPLERS,825,Water Sampling,Sampling & Analysis,30-Sep-21,2122/07,SME,N,
355412,CHIPSIDE LTD,711.75,C Parks General,Contracted Services,30-Sep-21,2122/07,SME,N,
355424,CHIPSIDE LTD,"1,440.00",C Parks General,Contracted Services,30-Sep-21,2122/07,SME,Y,50%
355323,CLARKE FENCING LTD,548.69,Open Spaces,"Equipment, Tools & Materials",04-Oct-21,2122/07,SME,N,
355111,D W ADAMS LTD,"10,018.12",Council House Adaptions,Improvements,28-Sep-21,2122/07,SME,N,
355051,EAST ANGLIA CLEANING SERVICES LTD,"1,374.49",Jnt Waste Contract,General Cleaning,27-Sep-21,2122/07,SME,Y,50%
355716,EAST OF ENGLAND LGA,"2,550.00",Management Team,Prof & Consultancy Fees,25-Oct-21,2122/07,SME,Y,50%
355059,ENGLISH SECURITY,67.4,Building Services,Repairs,20-Sep-21,2122/07,SME,N,
355058,ENGLISH SECURITY,"1,690.36",Sheltered Accommodation,Fire Prevention,20-Sep-21,2122/07,SME,N,
355059,ENGLISH SECURITY,62.5,Tacon Close Eye TDP,Repairs,20-Sep-21,2122/07,SME,N,
355041,ENVIROVENT LTD,498,Building Services,Repairs,27-Sep-21,2122/07,SME,N,
355277,FELLBRIDGE BUILDING SERVICES,"10,346.51",Major Imps,Improvements,04-Oct-21,2122/07,SME,N,
355347,FELLBRIDGE BUILDING SERVICES,"12,400.94",Major Imps,Improvements,07-Oct-21,2122/07,SME,N,
355348,FELLBRIDGE BUILDING SERVICES,"1,843.97",Building Services,Repairs,07-Oct-21,2122/07,SME,N,
355349,FELLBRIDGE BUILDING SERVICES,"2,303.90",Building Services,Repairs,07-Oct-21,2122/07,SME,N,
355408,FELLBRIDGE BUILDING SERVICES,"14,764.48",Major Imps,Repairs,11-Oct-21,2122/07,SME,N,
355409,FELLBRIDGE BUILDING SERVICES,"1,385.23",Building Services,Repairs,11-Oct-21,2122/07,SME,N,
355162,FORE-MOST GARAGE DOORS LTD,648,Building Services,Repairs,30-Sep-21,2122/07,SME,N,
355402,G & G SIGNS,300.2,Street Naming & Numbering,Signs,05-Oct-21,2122/07,SME,N,
355366,G4S CASH SOLUTIONS LTD,457.6,Financial Servs,Contracted Services,02-Aug-21,2122/07,LGE,N,
355367,G4S CASH SOLUTIONS LTD,663.52,Financial Servs,Contracted Services,02-Aug-21,2122/07,LGE,N,
355430,GHB ROOFING,"7,315.00",Sheltered Units-Gen.Imp,Improvements,12-Oct-21,2122/07,SME,N,
355433,GHB ROOFING,"1,730.00",Building Services,Repairs,12-Oct-21,2122/07,SME,N,
355434,GHB ROOFING,"1,170.00",Building Services,Repairs,12-Oct-21,2122/07,SME,N,
355435,GHB ROOFING,"2,770.00",Building Services,Repairs,12-Oct-21,2122/07,SME,N,
355436,GHB ROOFING,970,Building Services,Repairs,12-Oct-21,2122/07,SME,N,
355437,GHB ROOFING,"1,480.00",Building Services,Repairs,12-Oct-21,2122/07,SME,N,
355438,GHB ROOFING,"4,884.00",Building Services,Repairs,12-Oct-21,2122/07,SME,N,
355440,GHB ROOFING,"1,015.00",Building Services,Repairs,12-Oct-21,2122/07,SME,N,
355441,GHB ROOFING,"1,200.96",Building Services,Repairs,12-Oct-21,2122/07,SME,N,
355241,GLASDON UK LTD,295,Open Spaces,"Equipment, Tools & Materials",01-Sep-21,2122/07,LGE,N,
355320,HAYES DIGGINS BUILDERS,"1,050.00",Assets & Development,Repairs,05-Oct-21,2122/07,SME,N,
355608,HEMMING GROUP LTD,295,Management Team,Conference Expenses,20-Oct-21,2122/07,SME,Y,50%
355608,HEMMING GROUP LTD,295,Governance,Conference Expenses,20-Oct-21,2122/07,SME,N,
355625,JOHN PEEL CENTRE FOR CREATIVE ARTS,"8,000.00",Grants & Contrbns,Grants,20-Oct-21,2122/07,SME,N,
355525,KEYWAYS THE LOCKSMITHS LTD,320,Building Services,Repairs,15-Oct-21,2122/07,SME,N,
355397,LJ GAMMER (STOWMARKET) LTD,"4,114.00",Building Services,Plant & Vehicle - Other costs,08-Oct-21,2122/07,SME,N,
355324,M & H CIVIL ENGINEERING LTD,381.5,Building Services,Repairs,06-Oct-21,2122/07,SME,N,
355461,M & H CIVIL ENGINEERING LTD,"1,198.70",Building Services,Repairs,11-Oct-21,2122/07,SME,N,
354697,MARRIOTT HOLDINGS LTD,"1,875.00",C Parks-Stowmarket Lorry Park,Rent Payable,29-Sep-21,2122/07,SME,N,
355286,MATERIAL CHANGE COMPOSTING LTD,"1,108.46",Open Spaces,Waste Disposal,30-Sep-21,2122/07,LGE,N,
355172,MB TREES (EAST ANGLIA) LTD,"2,200.00",Open Spaces,Horticultural Purchases,30-Sep-21,2122/07,SME,N,
355472,MB TREES (EAST ANGLIA) LTD,"2,250.00",Public Tree Programme,Tree felling/maintenance,12-Oct-21,2122/07,SME,N,
355500,MB TREES (EAST ANGLIA) LTD,780,Public Tree Programme,Tree felling/maintenance,14-Oct-21,2122/07,SME,N,
355501,MB TREES (EAST ANGLIA) LTD,840,Tenancy Services,Tree felling/maintenance,14-Oct-21,2122/07,SME,N,
355512,MB TREES (EAST ANGLIA) LTD,820,Amenity Areas,Tree felling/maintenance,14-Oct-21,2122/07,SME,N,
355645,MB TREES (EAST ANGLIA) LTD,350,Public Tree Programme,Tree felling/maintenance,21-Oct-21,2122/07,SME,N,
355727,MB TREES (EAST ANGLIA) LTD,940,Public Tree Programme,Tree felling/maintenance,26-Oct-21,2122/07,SME,N,
355053,MERCURY BUILDING SERVICES LTD,"25,876.75",Sheltered Units-Gen.Imp,Improvements,23-Sep-21,2122/07,SME,N,
355283,MID SUFFOLK FENCING LTD,"3,973.73",Building Services,Repairs,01-Oct-21,2122/07,SME,N,
354720,MIXBROW LTD,"1,862.50",Wingfield Barns,Repairs,23-Aug-21,2122/07,SME,N,
422179,NEEDHAM MARKET TOWN COUNCIL,"21,635.32",Current Liabilities,Parish Payments Available,05-Oct-21,2122/07,SME,N,
355060,REID PLUMBING & HEATING CONTRACTORS LTD,"3,022.95",Central Heating,Major Contracts,27-Sep-21,2122/07,SME,N,
355086,REID PLUMBING & HEATING CONTRACTORS LTD,"4,013.59",Central Heating,Major Contracts,28-Sep-21,2122/07,SME,N,
355284,REID PLUMBING & HEATING CONTRACTORS LTD,"13,095.99",Central Heating,Major Contracts,05-Oct-21,2122/07,SME,N,
355419,REID PLUMBING & HEATING CONTRACTORS LTD,"17,387.82",Central Heating,Major Contracts,11-Oct-21,2122/07,SME,N,
355458,REID PLUMBING & HEATING CONTRACTORS LTD,"16,790.10",Central Heating,Major Contracts,13-Oct-21,2122/07,SME,N,
355598,REID PLUMBING & HEATING CONTRACTORS LTD,"8,737.94",Central Heating,Major Contracts,19-Oct-21,2122/07,SME,N,
355600,REID PLUMBING & HEATING CONTRACTORS LTD,"4,673.14",Central Heating,Major Contracts,20-Oct-21,2122/07,SME,N,
422141,REID PLUMBING & HEATING CONTRACTORS LTD,"13,112.43",Central Heating,Major Contracts,22-Sep-21,2122/07,SME,N,
355203,SACKERS LTD,"1,392.33",Building Services,Waste Disposal,30-Sep-21,2122/07,SME,Y,50%
354702,SANDY LANE NURSERY,"1,080.00",Transformation Fund,Misc Supplies & Services Costs,08-Sep-21,2122/07,SME,Y,50%
355356,SANDY LANE NURSERY,"2,659.00",Devt Management - Apps,Biodiversity Task Force,19-Oct-21,2122/07,SME,N,
355119,SEAGER HOME SOLUTIONS,"8,277.24",Building Services,Repairs,28-Sep-21,2122/07,SME,N,
355674,SOLUTIONS ON SECURITY SERVICES,260,Sheltered Accommodation,Repairs,22-Oct-21,2122/07,SME,N,
422221,SUFFOLK TREE SERVICES LTD,"1,950.00",Amenity Areas,Tree felling/maintenance,26-Oct-21,2122/07,SME,N,
422222,SUFFOLK TREE SERVICES LTD,"2,300.00",Amenity Areas,Tree felling/maintenance,19-Oct-21,2122/07,SME,N,
354855,THE PLAY INSPECTION COMPANY LTD,"2,928.40",Open Spaces,"Equipment, Tools & Materials",17-Sep-21,2122/07,SME,N,
355647,TRUCKEAST LTD,"1,422.77",Street & Major Road Cleansing,Plant & Vehicle - Other costs,21-Oct-21,2122/07,LGE,N,
353313,VALUATION OFFICE AGENCY,406.25,Devt Management - Apps,Prof & Consultancy Fees,02-Jul-21,2122/07,LGE,N,
355234,WEST END REHOMING,273.28,Dog Control,Collection Charges,01-Oct-21,2122/07,SME,N,
355174,WINDIMAN LTD,286.8,Building Services,Repairs,30-Sep-21,2122/07,SME,N,
355175,WINDIMAN LTD,297.74,Building Services,Repairs,30-Sep-21,2122/07,SME,N,
355352,WINDIMAN LTD,263.51,Building Services,Repairs,07-Oct-21,2122/07,SME,N,
355355,WINDIMAN LTD,420,Building Services,Repairs,07-Oct-21,2122/07,SME,N,
355649,WINDIMAN LTD,569.7,Building Services,Repairs,21-Oct-21,2122/07,SME,N,
355164,WORKWEAR (EAST ANGLIA) LTD,132.64,Building Services,Protective clothing,22-Sep-21,2122/07,SME,N,
355164,WORKWEAR (EAST ANGLIA) LTD,132.63,Building Services,Protective clothing,22-Sep-21,2122/07,SME,Y,
355431,WORKWEAR (EAST ANGLIA) LTD,834.92,Jnt Waste Contract,"Equipment, Tools & Materials",01-Oct-21,2122/07,SME,Y,50%
355520,WYARDS REMOVALS,"1,250.00",Tenancy Services,Contracted Services,09-Jun-21,2122/07,SME,N,
354894,ARCHANT COMMUNITY MEDIA LTD,"1,733.49",Devt Management - Apps,Advertising&mkting (non-staff),18-Sep-21,2122/07,LGE,N,
355201,ARCHANT COMMUNITY MEDIA LTD,770.44,Devt Management - Apps,Advertising&mkting (non-staff),30-Sep-21,2122/07,LGE,N,
355299,ARCHANT COMMUNITY MEDIA LTD,709.15,Devt Management - Apps,Advertising&mkting (non-staff),02-Oct-21,2122/07,LGE,N,
355406,ARCHANT COMMUNITY MEDIA LTD,709.16,Devt Management - Apps,Advertising&mkting (non-staff),11-Oct-21,2122/07,LGE,N,
355563,ARCHANT COMMUNITY MEDIA LTD,709.16,Devt Management - Apps,Advertising&mkting (non-staff),31-Aug-21,2122/07,LGE,N,
355636,ARCHANT COMMUNITY MEDIA LTD,770.44,Devt Management - Apps,Advertising&mkting (non-staff),18-Oct-21,2122/07,LGE,N,
355186,SPORTS & LEISURE MANAGEMENT LTD,"8,121.00",Leisure Contract,Contributions to other Bodies,30-Sep-21,2122/07,LGE,N,
354924,ESSEX COUNTY COUNCIL,310,Devt Management - Apps,(Urban) Design  Consultancy,09-Sep-21,2122/07,LGE,N,
355567,SERCO LTD,375,Domestic Waste,Refuse Contract,14-Oct-21,2122/07,LGE,N,
355568,SERCO LTD,"22,179.86",Trade Waste,Refuse Contract,14-Oct-21,2122/07,LGE,Y,60%
355568,SERCO LTD,"77,664.58",Garden Waste,Refuse Contract,14-Oct-21,2122/07,LGE,Y,48%
355568,SERCO LTD,"292,516.56",Domestic Waste,Refuse Contract,14-Oct-21,2122/07,LGE,Y,48%
355569,SERCO LTD,"4,377.00",Domestic Waste,Refuse Contract,14-Oct-21,2122/07,LGE,Y,50%
355118,TRAVIS PERKINS TRADING CO LTD,317.57,Building Services,"Equipment, Tools & Materials",24-Sep-21,2122/07,LGE,Y,50%
355321,TRAVIS PERKINS TRADING CO LTD,280.73,Building Services,"Equipment, Tools & Materials",04-Oct-21,2122/07,LGE,Y,50%
355527,TRAVIS PERKINS TRADING CO LTD,"57,076.88",Building Services,"Equipment, Tools & Materials",01-Oct-21,2122/07,LGE,Y,60.50%
422212,EDF ENERGY,93.38,"11 Market Place, Stowmarket",Electricity,15-Oct-21,2122/07,LGE,N,
422212,EDF ENERGY,621.89,C Parks General,Electricity,15-Oct-21,2122/07,LGE,N,
422212,EDF ENERGY,519.38,Creeting Rd Depot,Electricity,15-Oct-21,2122/07,LGE,Y,50%
422212,EDF ENERGY,263.16,Headquarters General,Electricity,15-Oct-21,2122/07,LGE,N,
422212,EDF ENERGY,"14,114.11",Leisure Contract,Electricity,15-Oct-21,2122/07,LGE,N,
422212,EDF ENERGY,20.88,Needham Market Middle School,Electricity,15-Oct-21,2122/07,LGE,N,
422212,EDF ENERGY,253.24,Open Spaces,Electricity,15-Oct-21,2122/07,LGE,N,
422212,EDF ENERGY,369.85,Other HRA Temp Accommodation,Electricity,15-Oct-21,2122/07,LGE,N,
422212,EDF ENERGY,213.25,Public Conveniences,Electricity,15-Oct-21,2122/07,LGE,N,
422212,EDF ENERGY,93.96,Pure Gym & Adjacent Building,Electricity,15-Oct-21,2122/07,LGE,N,
422212,EDF ENERGY,2,Recycling Centre,Electricity,15-Oct-21,2122/07,LGE,N,
422212,EDF ENERGY,324.7,Sewage Treatment Works,Electricity,15-Oct-21,2122/07,LGE,N,
422212,EDF ENERGY,"6,294.56",Sheltered Accommodation,Electricity,15-Oct-21,2122/07,LGE,N,
422212,EDF ENERGY,73.58,Tacon Close Eye TDP,Electricity,15-Oct-21,2122/07,LGE,N,
422212,EDF ENERGY,331.22,Temporary Accommodation,Electricity,15-Oct-21,2122/07,LGE,N,
422212,EDF ENERGY,"1,067.93",Tenancy Services,Electricity,15-Oct-21,2122/07,LGE,N,
422212,EDF ENERGY,652.68,Wingfield Barns,Electricity,15-Oct-21,2122/07,LGE,N,
355354,J BREHENY CONTRACTORS LTD,"203,300.28",Strategic Assets,Major Contracts,07-Oct-21,2122/07,LGE,N,
422209,GPC BARCLAYS,"6,789.19",Current Assets,Barclaycard Control,14-Oct-21,2122/07,LGE,Y,22%
422200,ALLSTAR BUSINESS SOLUTIONS LTD,238.5,Housing Options,Plant & Vehicle Fuel,30-Sep-21,2122/07,SME,Y,50%
422200,ALLSTAR BUSINESS SOLUTIONS LTD,"7,632.21",Building Services,Plant & Vehicle Fuel,30-Sep-21,2122/07,SME,Y,50%
355557,STANNAH STAIRLIFTS LTD,383.76,Tenancy Services,Repairs,18-Oct-21,2122/07,LGE,N,
422152,COMPUTERSHARE ,"1,276.00",Current Assets,ChildCare Vouchers-Control,28-Sep-21,2122/07,LGE,N,
422155,BACTON PARISH COUNCIL,"14,773.76",Current Liabilities,Parish Payments Available,05-Oct-21,2122/07,SME,N,
422156,BADWELL ASH PARISH COUNCIL,"10,773.56",Current Liabilities,Parish Payments Available,05-Oct-21,2122/07,SME,N,
422157,BARHAM PARISH COUNCIL,"3,640.64",Current Liabilities,Parish Payments Available,05-Oct-21,2122/07,SME,N,
422158,BARKING PARISH COUNCIL,"6,439.62",Current Liabilities,Parish Payments Available,05-Oct-21,2122/07,SME,N,
422159,BATTISFORD PARISH COUNCIL,349.85,Current Liabilities,Parish Payments Available,05-Oct-21,2122/07,SME,N,
422160,BOTESDALE PARISH COUNCIL,"17,147.31",Current Liabilities,Parish Payments Available,05-Oct-21,2122/07,SME,N,
422161,BROME & OAKLEY PARISH COUNCIL,"3,097.16",Current Liabilities,Parish Payments Available,05-Oct-21,2122/07,SME,N,
422162,BUXHALL PARISH COUNCIL,"8,680.72",Current Liabilities,Parish Payments Available,05-Oct-21,2122/07,SME,N,
422163,CLAYDON & WHITTON PARISH COUNCIL,"56,086.56",Current Liabilities,Parish Payments Available,05-Oct-21,2122/07,SME,N,
422164,CREETING ST MARY PARISH COUNCIL,"10,541.73",Current Liabilities,Parish Payments Available,05-Oct-21,2122/07,SME,N,
355619,DEBENHAM PARISH COUNCIL,550,Suffolk Community Restart Fund,Grants,20-Oct-21,2122/07,SME,N,
422165,DEBENHAM PARISH COUNCIL,"6,709.00",Current Liabilities,Parish Payments Available,05-Oct-21,2122/07,SME,N,
354998,DEBENHAM VILLAGE HALL & PLAYING FIELD TR,"4,160.00",CIL Funded REFCUS,Grants,23-Sep-21,2122/07,SME,N,
355624,DEBENHAM VILLAGE HALL & PLAYING FIELD TR,"12,500.00",Grants & Contrbns,Grants,20-Oct-21,2122/07,SME,N,
355684,DEBENHAM VILLAGE HALL & PLAYING FIELD TR,"21,562.00",S106 Open Spaces Expenditure,Grants,22-Oct-21,2122/07,SME,N,
422166,ELMSWELL PARISH COUNCIL,"81,554.51",Current Liabilities,Parish Payments Available,05-Oct-21,2122/07,SME,N,
422167,EYE TOWN COUNCIL,"2,937.88",Current Liabilities,Parish Payments Available,05-Oct-21,2122/07,SME,N,
422168,FINNINGHAM PARISH COUNCIL,"2,262.18",Current Liabilities,Parish Payments Available,05-Oct-21,2122/07,SME,N,
422169,FRESSINGFIELD PARISH COUNCIL,"3,185.82",Current Liabilities,Parish Payments Available,05-Oct-21,2122/07,SME,N,
422170,GISLINGHAM PARISH COUNCIL,"4,538.23",Current Liabilities,Parish Payments Available,05-Oct-21,2122/07,SME,N,
422171,GREAT ASHFIELD PARISH COUNCIL,"1,689.65",Current Liabilities,Parish Payments Available,05-Oct-21,2122/07,SME,N,
422172,GREAT BLAKENHAM PARISH COUNCIL,"31,682.21",Current Liabilities,Parish Payments Available,05-Oct-21,2122/07,SME,N,
422173,GREAT BRICETT PARISH COUNCIL,"10,371.38",Current Liabilities,Parish Payments Available,05-Oct-21,2122/07,SME,N,
422174,GREAT FINBOROUGH PARISH COUNCIL,"12,326.93",Current Liabilities,Cert IBS Creditors Holding ac,05-Oct-21,2122/07,SME,N,
422175,HAUGHLEY PARISH COUNCIL,"126,023.65",Current Liabilities,Parish Payments Available,05-Oct-21,2122/07,SME,N,
422176,LAXFIELD PARISH COUNCIL,"5,472.92",Current Liabilities,Parish Payments Available,05-Oct-21,2122/07,SME,N,
422177,MELLIS PARISH COUNCIL,"6,340.54",Current Liabilities,Parish Payments Available,05-Oct-21,2122/07,SME,N,
422178,MENDHAM PARISH COUNCIL,"3,929.99",Current Liabilities,Parish Payments Available,05-Oct-21,2122/07,SME,N,
355626,MUSEUM OF EAST ANGLIAN LIFE,"10,000.00",Grants & Contrbns,Grants,20-Oct-21,2122/07,SME,N,
355686,NORTON PARISH COUNCIL,"3,000.00",Grants & Contrbns,Contributions & Donations,22-Oct-21,2122/07,SME,N,
422180,NORTON PARISH COUNCIL,"21,589.60",Current Liabilities,Parish Payments Available,05-Oct-21,2122/07,SME,N,
422181,OCCOLD PARISH COUNCIL,"9,138.19",Current Liabilities,Parish Payments Available,05-Oct-21,2122/07,SME,N,
355056,OCCOLD RECREATIONAL & AMENITIES COUNCIL,"2,892.24",CIL Funded REFCUS,Grants,27-Sep-21,2122/07,SME,N,
422182,OLD NEWTON WITH DAGWORTH AND GIPPING PAR,"4,463.78",Current Liabilities,Parish Payments Available,05-Oct-21,2122/07,SME,N,
422183,PALGRAVE PARISH COUNCIL,"5,460.04",Current Liabilities,Parish Payments Available,05-Oct-21,2122/07,SME,N,
422184,RATTLESDEN PARISH COUNCIL,"15,218.98",Current Liabilities,Parish Payments Available,05-Oct-21,2122/07,SME,N,
422185,RICKINGHALL INFERIOR AND RICKINGHALL SUP,"6,194.15",Current Liabilities,Parish Payments Available,05-Oct-21,2122/07,SME,N,
422186,RINGSHALL PARISH COUNCIL,"6,147.82",Current Liabilities,Parish Payments Available,05-Oct-21,2122/07,SME,N,
422187,SOMERSHAM PARISH COUNCIL,"29,570.26",Current Liabilities,Parish Payments Available,05-Oct-21,2122/07,SME,N,
422189,STOWUPLAND PARISH COUNCIL,"219,098.64",Current Liabilities,Parish Payments Available,05-Oct-21,2122/07,SME,N,
422190,STRADBROKE PARISH COUNCIL,"6,318.31",Current Liabilities,Parish Payments Available,05-Oct-21,2122/07,SME,N,
355685,SYLEHAM PARISH COUNCIL,350,Grants & Contrbns,Contributions & Donations,22-Oct-21,2122/07,SME,N,
422191,THORNDON PARISH COUNCIL,"3,073.38",Current Liabilities,Parish Payments Available,05-Oct-21,2122/07,SME,N,
355616,THORNHAM PARISH HALL,"2,500.00",Suffolk Community Restart Fund,Grants,20-Oct-21,2122/07,SME,N,
422192,THURSTON PARISH COUNCIL,"160,177.08",Current Liabilities,Parish Payments Available,05-Oct-21,2122/07,SME,N,
355691,WALSHAM LE WILLOWS PARISH COUNCIL,"1,000.00",Grants & Contrbns,Contributions & Donations,22-Oct-21,2122/07,SME,N,
422193,WALSHAM LE WILLOWS PARISH COUNCIL,"20,388.50",Current Liabilities,Parish Payments Available,05-Oct-21,2122/07,SME,N,
422194,WATTISFIELD PARISH COUNCIL,"3,354.67",Current Liabilities,Parish Payments Available,05-Oct-21,2122/07,SME,N,
422195,WOOLPIT PARISH COUNCIL,"94,109.19",Current Liabilities,Cert IBS Creditors Holding ac,05-Oct-21,2122/07,SME,N,
422196,WORLINGWORTH PARISH COUNCIL,"15,450.42",Current Liabilities,Parish Payments Available,05-Oct-21,2122/07,SME,N,
422197,WORTHAM AND BURGATE PARISH COUNCIL,"16,701.83",Current Liabilities,Parish Payments Available,05-Oct-21,2122/07,SME,N,
422198,WYVERSTONE PARISH COUNCIL,"8,338.37",Current Liabilities,Parish Payments Available,05-Oct-21,2122/07,SME,N,
422199,YAXLEY PARISH COUNCIL,"6,320.93",Current Liabilities,Parish Payments Available,05-Oct-21,2122/07,SME,N,
355628,E.ON,"2,076.48",Other HRA Temp Accommodation,Heating Charges,10-Oct-21,2122/07,LGE,N,
351369,SUFFOLK COUNTY COUNCIL,950,Communications,Advertising&mkting (non-staff),26-Mar-21,2122/07,LGE,Y,50%
355190,SUFFOLK COUNTY COUNCIL,"1,575.00",Organisational Devt,Recruitment,30-Sep-21,2122/07,LGE,Y,50%
355213,SUFFOLK COUNTY COUNCIL,782,Organisational Devt,Recruitment,30-Sep-21,2122/07,LGE,Y,50%
355469,SUFFOLK COUNTY COUNCIL,"19,817.51",Domestic Waste,MRF Disposal,13-Oct-21,2122/07,LGE,N,
355469,SUFFOLK COUNTY COUNCIL,"21,966.00",Garden Waste,Garden Waste Disposal,13-Oct-21,2122/07,LGE,N,
355582,SUFFOLK COUNTY COUNCIL,785,Organisational Devt,Recruitment,18-Oct-21,2122/07,LGE,Y,50%
355604,SUFFOLK COUNTY COUNCIL,"1,094.44",General Rechargeable Works,Misc Supplies & Services Costs,19-Oct-21,2122/07,LGE,N,
355664,SUFFOLK COUNTY COUNCIL,"3,055.00",Pre App Charging,Highways  Consultancy,21-Oct-21,2122/07,LGE,N,
355665,SUFFOLK COUNTY COUNCIL,"2,729.00",Pre App Charging,Prof & Consultancy Fees,21-Oct-21,2122/07,LGE,N,
355704,SUFFOLK COUNTY COUNCIL,"1,845.00",ICT,Software Licences (Corporate) ,22-Oct-21,2122/07,LGE,Y,50%
355189,FENN WRIGHT LLP,"1,575.00",General/Supervision & Mgmt,Prof & Consultancy Fees,30-Sep-21,2122/07,SME,N,
422188,STOWMARKET TOWN COUNCIL,"10,966.30",Current Liabilities,Parish Payments Available,05-Oct-21,2122/07,SME,N,
355405,PIRTEK IPSWICH,503.1,Street & Major Road Cleansing,Plant & Vehicle - Other costs,07-Oct-21,2122/07,SME,N,
355705,KENNET EQUIPMENT LEASING,283.05,Creeting Rd Depot,Operating Lease Payments,25-Oct-21,2122/07,SME,Y,50%
355532,LEX AUTOLEASE,327.13,Building Services,Lease Cars - Payment,10-Aug-21,2122/07,SME,Y,50%
355533,LEX AUTOLEASE,325.71,Building Services,Lease Cars - Payment,11-Aug-21,2122/07,SME,Y,50%
355534,LEX AUTOLEASE,312.08,Building Services,Lease Cars - Payment,11-Aug-21,2122/07,SME,Y,50%
355535,LEX AUTOLEASE,268.85,Building Services,Lease Cars - Payment,12-Aug-21,2122/07,SME,Y,50%
355536,LEX AUTOLEASE,329.86,Building Services,Lease Cars - Payment,12-Aug-21,2122/07,SME,Y,50%
355537,LEX AUTOLEASE,342.67,Building Services,Lease Cars - Payment,12-Aug-21,2122/07,SME,Y,50%
355538,LEX AUTOLEASE,252.78,Building Services,Lease Cars - Payment,12-Aug-21,2122/07,SME,Y,50%
355543,LEX AUTOLEASE,"2,963.51",Building Services,Lease Cars - Payment,01-Sep-21,2122/07,SME,Y,50%
354873,CIVICA UK LIMITED,"9,760.73",ICT,Software Licnse (Line of Bus) ,17-Sep-21,2122/07,LGE,N,
422217,GAZPROM ENERGY,15.01,"11 Market Place, Stowmarket",Gas,25-Oct-21,2122/07,SME,N,
422217,GAZPROM ENERGY,77.77,Creeting Rd Depot,Gas,25-Oct-21,2122/07,SME,Y,50%
422217,GAZPROM ENERGY,3.44,Headquarters General,Gas,25-Oct-21,2122/07,SME,N,
422217,GAZPROM ENERGY,"2,943.72",Leisure Contract,Gas,25-Oct-21,2122/07,SME,N,
422217,GAZPROM ENERGY,69.66,Pure Gym & Adjacent Building,Gas,25-Oct-21,2122/07,SME,N,
422217,GAZPROM ENERGY,"2,912.95",Sheltered Accommodation,Gas,25-Oct-21,2122/07,SME,N,
422217,GAZPROM ENERGY,195.56,Temporary Accommodation,Gas,25-Oct-21,2122/07,SME,N,
422217,GAZPROM ENERGY,198.59,Tenancy Services,Gas,25-Oct-21,2122/07,SME,N,
354722,PREMIER BODYWORKS,"3,764.60",Street & Major Road Cleansing,Plant & Vehicle - Other costs,08-Sep-21,2122/07,SME,N,
355166,PREMIER BODYWORKS,364.23,Street & Major Road Cleansing,Plant & Vehicle - Other costs,29-Sep-21,2122/07,SME,N,
355170,PREMIER BODYWORKS,"2,200.00",Street & Major Road Cleansing,Plant & Vehicle - Other costs,29-Sep-21,2122/07,SME,N,
355171,PREMIER BODYWORKS,291.01,Street & Major Road Cleansing,Plant & Vehicle - Other costs,29-Sep-21,2122/07,SME,N,
355620,MID SUFFOLK CITIZENS ADVICE BUREAU,"23,875.00",Grants & Contrbns,Grants,20-Oct-21,2122/07,SME,N,
355004,WHYBROW PROPERTY SOLUTIONS LTD,"2,429.47",Building Services,Repairs,22-Sep-21,2122/07,SME,N,
355038,WHYBROW PROPERTY SOLUTIONS LTD,"7,037.75",Building Services,Repairs,03-Sep-21,2122/07,SME,N,
355043,WHYBROW PROPERTY SOLUTIONS LTD,"7,535.42",Building Services,Repairs,22-Sep-21,2122/07,SME,N,
355044,WHYBROW PROPERTY SOLUTIONS LTD,"20,000.00",Major Imps,Major Contracts,22-Sep-21,2122/07,SME,N,
355547,WHYBROW PROPERTY SOLUTIONS LTD,"11,691.55",Major Imps,Major Contracts,11-Oct-21,2122/07,SME,N,
355548,WHYBROW PROPERTY SOLUTIONS LTD,800,Building Services,Repairs,11-Oct-21,2122/07,SME,N,
355126,L A C CLEANING CONTRACTORS LIMITED,798.41,Temporary Accommodation,General Cleaning,29-Sep-21,2122/07,SME,N,
355364,L A C CLEANING CONTRACTORS LIMITED,"1,995.50",Building Services,Repairs,06-Oct-21,2122/07,SME,N,
355653,L A C CLEANING CONTRACTORS LIMITED,798.41,Temporary Accommodation,General Cleaning,20-Oct-21,2122/07,SME,N,
355290,MENTA,"7,000.00",Economy & Business,Contributions & Donations,05-Aug-21,2122/07,SME,Y,50%
355298,ARMSTRONG YORK ASBESTOS ENVIRONMENTAL,"9,672.60",Asbestos Survey & Reinspection,Prof & Consultancy Fees,30-Sep-21,2122/07,SME,N,
355518,DMP TRAINING (UK),"1,211.25",Street & Major Road Cleansing,Training,25-Aug-21,2122/07,SME,N,
355629,THE MIX STOWMARKET LTD,"7,500.00",Grants & Contrbns,Grants,20-Oct-21,2122/07,SME,N,
422151,BT DIRECT DEBIT,"10,619.14",ICT,Telephone Costs,21-Sep-21,2122/07,LGE,Y,50%
355338,STOWE VETERINARY GROUP,293.99,Animal Welfare Licensing,Prof & Consultancy Fees,04-Oct-21,2122/07,SME,N,
355362,BRITISH GEOLOGICAL SURVEY NERCS,502.51,ICT,Software Licnse (Line of Bus) ,07-Oct-21,2122/07,LGE,Y,50%
355242,OPUS PEOPLE SOLUTIONS LTD,850.51,Current Liabilities,Agency Staff Holding A/C,30-Sep-21,2122/07,SME,N,
355415,OPUS PEOPLE SOLUTIONS LTD,798.06,Current Liabilities,Agency Staff Holding A/C,07-Oct-21,2122/07,SME,N,
355583,OPUS PEOPLE SOLUTIONS LTD,827.73,Current Liabilities,Agency Staff Holding A/C,14-Oct-21,2122/07,SME,N,
355709,OPUS PEOPLE SOLUTIONS LTD,"1,303.94",Current Liabilities,Agency Staff Holding A/C,21-Oct-21,2122/07,SME,N,
355184,CORNERSTONE BARRISTERS,300,Devt Management - Apps,Legal Expenses,28-Sep-21,2122/07,SME,N,
354699,VERTAS GROUP LTD,"1,383.80",Customer Servs,"Equipment, Tools & Materials",08-Sep-21,2122/07,SME,Y,50%
355385,VERTAS GROUP LTD,"1,395.00",Unapportionable Central OHs,Security Systems,30-Jul-21,2122/07,SME,N,
355386,VERTAS GROUP LTD,"1,350.00",Assets & Development,Security Systems,30-Sep-21,2122/07,SME,N,
355317,POSTURITE LTD,710.52,Health & Safety,Furniture,05-Oct-21,2122/07,SME,Y,50%
355603,4PRINCIPLES CONSTRUCTION LTD,"5,949.91",Mand Disabled Facilities Grant,Grants,20-Oct-21,2122/07,SME,N,
355735,4PRINCIPLES CONSTRUCTION LTD,"5,183.51",Mand Disabled Facilities Grant,Grants,27-Oct-21,2122/07,SME,N,
355400,MATT ALLMAN LTD T/A MOVEITCLEARITFINDIT,600,Homelessness Private Sector,Removal Expenses,11-Oct-21,2122/07,SME,N,
355554,MATT ALLMAN LTD T/A MOVEITCLEARITFINDIT,491.67,Homelessness Private Sector,Removal Expenses,18-Oct-21,2122/07,SME,N,
355403,BIRKETTS LLP,310,BMS Invest,Prof & Consultancy Fees,07-Oct-21,2122/07,LGE,Y,50%
355546,BIRKETTS LLP,"1,455.00",Organisational Devt,Training,01-Oct-21,2122/07,LGE,Y,50%
355304,GALLAGHER CAR & VAN RENTALS LTD,"1,100.00",Domestic Waste,Refuse Contract,04-Oct-21,2122/07,LGE,N,
355471,GALLAGHER CAR & VAN RENTALS LTD,900,Domestic Waste,Refuse Contract,13-Oct-21,2122/07,LGE,N,
355396,FORESOLUTIONS LTD,468.7,Open Spaces,Plant & Vehicle - Other costs,08-Oct-21,2122/07,SME,N,
355396,FORESOLUTIONS LTD,155.9,Street & Major Road Cleansing,Plant & Vehicle - Other costs,08-Oct-21,2122/07,SME,N,
355618,SOMERSHAM TENNIS CLUB,"1,400.00",Suffolk Community Restart Fund,Grants,20-Oct-21,2122/07,SME,N,
355667,1ST FRESSINGFIELD SCOUT GROUP,"2,389.35",Suffolk Community Restart Fund,Grants,21-Oct-21,2122/07,SME,N,
355055,MENDLESHAM MEDICAL GROUP,"14,760.00",CIL Funded REFCUS,Grants,27-Sep-21,2122/07,SME,N,
355715,MENDLESHAM MEDICAL GROUP,"15,744.00",CIL Funded REFCUS,Grants,25-Oct-21,2122/07,SME,N,
355214,FAST TEST STOWMARKET LLP,300,Taxi & Private Hire Licensing,Contracted Services,30-Sep-21,2122/07,SME,N,
355339,ADVANCE SUPPLIES,336.37,Jnt Waste Contract,Cleaning Materials,22-Sep-21,2122/07,SME,Y,50%
422204,HM COURTS & TRIBUNALS SERVICE  (DD ONLY),616,Tenancy Services,Legal Expenses,01-Oct-21,2122/07,LGE,N,
355484,PUBLIC SEWER SERVICES,542.4,Building Services,Repairs,30-Sep-21,2122/07,SME,N,
355296,ASPECT CONTRACTS LTD,"3,992.00",Asbestos,Improvements,30-Sep-21,2122/07,LGE,N,
355268,RIX PETROLEUM (EAST ANGLIA) LTD,"3,750.71",Open Spaces,Plant & Vehicle Fuel,02-Sep-21,2122/07,SME,N,
422208,RIX PETROLEUM (EAST ANGLIA) LTD,"7,339.50",Open Spaces,Plant & Vehicle Fuel,04-Oct-21,2122/07,SME,N,
422208,RIX PETROLEUM (EAST ANGLIA) LTD,"1,140.48",Tenancy Services,Heating Oil,04-Oct-21,2122/07,SME,N,
355669,KNOWLES ASSOCIATES TFM LTD,957.92,Building Services,Lease Cars - Payment,01-Sep-21,2122/07,SME,Y,50%
355326,FLOOR DIMENSIONS LTD,"2,600.00",Tenancy Services,Repairs,25-Jun-21,2122/07,SME,N,
355631,PARK AVENUE RECRUITMENT LTD,"1,640.00",Devt Management - Apps,Prof & Consultancy Fees,19-Oct-21,2122/07,SME,Y,45%
355003,SKYGUARD LTD T/A PEOPLESAFE,"1,800.00",Health & Safety,"Equipment, Tools & Materials",20-Jun-21,2122/07,SME,Y,50%
355246,RESIDENTIALLY CHARTERED SURVEYORS,850,"Green Road, Woolpit",Prof & Consultancy Fees,30-Sep-21,2122/07,SME,N,
355229,TOP FLOORS (EAST ANGLIA) LTD,"1,884.01",Other Temp Accommodation,"Equipment, Tools & Materials",08-Sep-21,2122/07,SME,N,
354751,ICENI,"1,226.26",Needham Market Middle School,Prof & Consultancy Fees,13-Sep-21,2122/07,SME,N,
354751,ICENI,"2,073.91",Needham Market Middle School,Prof & Consultancy Fees,13-Sep-21,2122/07,SME,N,
355612,ICENI,"2,935.43","Green Road, Woolpit",Prof & Consultancy Fees,20-Oct-21,2122/07,SME,N,
355613,ICENI,"1,857.90","Back Hills, Botesdale, S106",Prof & Consultancy Fees,20-Oct-21,2122/07,SME,N,
355710,CREDITSAFE BUSINESS SOLUTIONS LTD,500,Commissioning & Procurement,Subscriptions,24-Oct-21,2122/07,SME,Y,50%
355634,MICHELLE BOLGER EXPERT LANDSCAPE CONSULT,"1,304.50",Devt Management - Apps,Ecology Consultancy,14-Oct-21,2122/07,SME,N,
355466,BELLWAY HOMES LIMITED (ESSEX DIVISION),"177,187.28",Eves Meadow Haughley S106,Prof & Consultancy Fees,04-Oct-21,2122/07,LGE,N,
355627,CALL POINT FIRE LTD,"6,442.07",Sheltered Accommodation,Fire Prevention,20-Oct-21,2122/07,SME,N,
355383,SOLACE IN BUSINESS,"12,000.00",Bus Imp (Corp),Agency Staff,08-Oct-21,2122/07,SME,Y,50%
422213,SHORTS PROPERTY PEOPLE,"1,793.01",Rent Deposit Scheme,Misc Premises Costs,19-Oct-21,2122/07,SME,N,
355379,A C LEIGH (NORWICH) LTD,420.3,Building Services,"Equipment, Tools & Materials",04-Oct-21,2122/07,SME,N,
355467,3 POINT PROPERTY MANAGEMENT LTD,675,Guaranteed Rent Scheme,Rent Payable,22-Sep-21,2122/07,SME,N,
355737,COOKS BLIND AND SHUTTERS LTD,342,Creeting Rd Depot,Grounds & Site Maintenance,27-Oct-21,2122/07,SME,Y,50%
355398,EDMUNDSON ELECTRICAL LTD (IPSWICH),612.23,Building Services,"Equipment, Tools & Materials",07-Oct-21,2122/07,LGE,N,
355668,DG ACCESSIBLE DESIGNS,"1,249.73",Mand Disabled Facilities Grant,Grants,22-Oct-21,2122/07,SME,N,
355232,APTL ENTERPRISES LTD,"6,557.50",PV Panels,Repairs,30-Sep-21,2122/07,SME,N,
354554,WASHCO LTD,467,Sheltered Accommodation,"Equipment, Tools & Materials",01-Sep-21,2122/07,SME,N,
354962,ANGLIA COMMERCIAL FLOORING LTD,491.94,Building Services,Repairs,22-Sep-21,2122/07,SME,N,
355137,ANGLIA COMMERCIAL FLOORING LTD,422.92,Building Services,Repairs,22-Sep-21,2122/07,SME,N,
355138,ANGLIA COMMERCIAL FLOORING LTD,996.09,Building Services,Repairs,22-Sep-21,2122/07,SME,N,
355139,ANGLIA COMMERCIAL FLOORING LTD,711.48,Building Services,Repairs,22-Sep-21,2122/07,SME,N,
355140,ANGLIA COMMERCIAL FLOORING LTD,445.12,Building Services,Repairs,22-Sep-21,2122/07,SME,N,
355473,ANGLIA COMMERCIAL FLOORING LTD,"1,003.04",Building Services,Repairs,13-Oct-21,2122/07,SME,N,
355474,ANGLIA COMMERCIAL FLOORING LTD,682.99,Building Services,Repairs,13-Oct-21,2122/07,SME,N,
355475,ANGLIA COMMERCIAL FLOORING LTD,546.39,Building Services,Repairs,13-Oct-21,2122/07,SME,N,
355476,ANGLIA COMMERCIAL FLOORING LTD,324.24,Building Services,Repairs,13-Oct-21,2122/07,SME,N,
355478,ANGLIA COMMERCIAL FLOORING LTD,452.51,Building Services,Repairs,13-Oct-21,2122/07,SME,N,
355480,ANGLIA COMMERCIAL FLOORING LTD,671.61,Building Services,Repairs,13-Oct-21,2122/07,SME,N,
355481,ANGLIA COMMERCIAL FLOORING LTD,682.45,Building Services,Repairs,13-Oct-21,2122/07,SME,N,
355482,ANGLIA COMMERCIAL FLOORING LTD,314.84,Building Services,Repairs,13-Oct-21,2122/07,SME,N,
355483,ANGLIA COMMERCIAL FLOORING LTD,437.72,Building Services,Repairs,13-Oct-21,2122/07,SME,N,
355599,ANGLIA COMMERCIAL FLOORING LTD,439.81,Building Services,Repairs,12-Oct-21,2122/07,SME,N,
355593,ANGLIAN WATER BUS (NAT) LTD T/A WAVE,24.97,"11 Market Place, Stowmarket",Water Rates - Metered,13-Oct-21,2122/07,LGE,N,
355593,ANGLIAN WATER BUS (NAT) LTD T/A WAVE,611.54,Creeting Rd Depot,Water Rates - Metered,13-Oct-21,2122/07,LGE,Y,50%
355593,ANGLIAN WATER BUS (NAT) LTD T/A WAVE,30.15,General/Supervision & Mgmt,Water Rates - Metered,13-Oct-21,2122/07,LGE,N,
355593,ANGLIAN WATER BUS (NAT) LTD T/A WAVE,121.14,Headquarters General,Water Rates - Metered,13-Oct-21,2122/07,LGE,N,
355593,ANGLIAN WATER BUS (NAT) LTD T/A WAVE,109.54,Open Spaces,Water Rates - Metered,13-Oct-21,2122/07,LGE,N,
355593,ANGLIAN WATER BUS (NAT) LTD T/A WAVE,226.5,Public Conveniences,Water Rates - Metered,13-Oct-21,2122/07,LGE,N,
355593,ANGLIAN WATER BUS (NAT) LTD T/A WAVE,3.9,Recycling Centre,Water Rates - Metered,13-Oct-21,2122/07,LGE,N,
355593,ANGLIAN WATER BUS (NAT) LTD T/A WAVE,3.9,Sewage Treatment Works,Water Rates - Metered,13-Oct-21,2122/07,LGE,N,
355593,ANGLIAN WATER BUS (NAT) LTD T/A WAVE,"2,650.38",Sheltered Accommodation,Water Rates - Metered,13-Oct-21,2122/07,LGE,N,
355593,ANGLIAN WATER BUS (NAT) LTD T/A WAVE,18.91,Tacon Close Eye TDP,Water Rates - Metered,13-Oct-21,2122/07,LGE,N,
355593,ANGLIAN WATER BUS (NAT) LTD T/A WAVE,42.85,Temporary Accommodation,Water Rates - Metered,13-Oct-21,2122/07,LGE,N,
355593,ANGLIAN WATER BUS (NAT) LTD T/A WAVE,39.87,Tenancy Services,Water Rates - Metered,13-Oct-21,2122/07,LGE,N,
355593,ANGLIAN WATER BUS (NAT) LTD T/A WAVE,9.38,Wingfield Barns,Water Rates - Metered,13-Oct-21,2122/07,LGE,N,
355742,ABACUS FIRE & SECURITY LTD,514.89,Open Spaces,Plant & Vehicle - Other costs,27-Oct-21,2122/07,SME,N,
354985,127 TRADING LTD,"2,129.00",BRRP - Successful & Skilled,Prof & Consultancy Fees,22-Sep-21,2122/07,SME,N,
355301,PARKYNS LETTINGS BURY ST EDMUNDS,650,Guaranteed Rent Scheme,Rent Payable,06-Oct-21,2122/07,SME,N,
422220,PARKYNS LETTINGS BURY ST EDMUNDS,570,Rent Deposit Scheme,Misc Premises Costs,26-Oct-21,2122/07,SME,N,
355144,CROSS MEDIA PRINT& DIGITAL SOLUTIONS LTD,571.5,Business Cont/Emergency Plan,Property Servicing,10-Sep-21,2122/07,SME,Y,50%
355145,CROSS MEDIA PRINT& DIGITAL SOLUTIONS LTD,289.06,Business Cont/Emergency Plan,Property Servicing,16-Sep-21,2122/07,SME,Y,50%
355146,CROSS MEDIA PRINT& DIGITAL SOLUTIONS LTD,659.36,Business Cont/Emergency Plan,Property Servicing,10-Sep-21,2122/07,SME,Y,50%
355410,CROSS MEDIA PRINT& DIGITAL SOLUTIONS LTD,396.48,Building Services,Commercial Printing,01-Oct-21,2122/07,SME,Y,50%
355330,MID SUFFOLK GROWTH LTD,"38,122.56",Regen Fund - HQ Sites,Prof & Consultancy Fees,05-Oct-21,2122/07,SME,N,
355331,MID SUFFOLK GROWTH LTD,"50,161.27",Needham HQ S106 Units,Purchase of Land & Buildings,06-Oct-21,2122/07,SME,N,
355680,MID SUFFOLK GROWTH LTD,"48,127.29",Regen Fund - HQ Sites,Prof & Consultancy Fees,21-Oct-21,2122/07,SME,N,
355681,MID SUFFOLK GROWTH LTD,"63,325.38",Needham HQ S106 Units,Purchase of Land & Buildings,22-Oct-21,2122/07,SME,N,
355442,DEMOCRACY COUNTS LTD,"2,538.47",Electoral Registration,Returning Officer Fees,31-Aug-21,2122/07,SME,Y,47%
354989,LAND USE CONSULTANTS LTD,"26,191.31",Devt Policy & Local Plans,Prof & Consultancy Fees,27-Aug-21,2122/07,SME,Y,50%
355432,QUADIENT UK LIMITED,"1,000.00",Central Postal Serv,Postage,05-Oct-21,2122/07,LGE,Y,50%
355161,WILKS HEAD AND EVE LLP,"4,750.00",Financial Servs,Prof & Consultancy Fees,06-Sep-21,2122/07,SME,N,
355161,WILKS HEAD AND EVE LLP,"17,650.00",General/Supervision & Mgmt,Prof & Consultancy Fees,06-Sep-21,2122/07,SME,N,
355689,SOMERSHAM COMMUNITY PUB LTD,"2,000.00",Grants & Contrbns,Contributions & Donations,22-Oct-21,2122/07,SME,N,
355516,MODECE ARCHITECTS LTD,755,BRRP-MarketTownVision&Invest,"Equipment, Tools & Materials",14-Oct-21,2122/07,SME,N,
355579,LIMELEASE LTD,395,Guaranteed Rent Scheme,Rent Payable,19-Oct-21,2122/07,SME,N,
355269,JLV PROPERTY LTD,500,Guaranteed Rent Scheme,Rent Payable,05-Oct-21,2122/07,SME,N,
355280,GIPPING CONSTRUCTION LTD,"19,755.47",Regen Fund - HQ Sites,Prof & Consultancy Fees,01-Oct-21,2122/07,SME,N,
355280,GIPPING CONSTRUCTION LTD,"258,634.53",Needham Market Middle School,Prof & Consultancy Fees,01-Oct-21,2122/07,SME,N,
355695,CAPITA BUSINESS SERVICES LTD (PAY360),"4,319.32",Bank Chgs,Bank Charges,08-Oct-21,2122/07,LGE,N,
355562,PRIVATE LANDLORD,786.5,Guaranteed Rent Scheme,Rent Payable,18-Oct-21,2122/07,ST,N,
354928,MRS SHELLEY SPALL T/A CLEANING COVERED,896,Business Cont/Emergency Plan,General Cleaning,22-Sep-21,2122/07,SME,N,
355652,UKBCSD,"3,000.00",Management Team,Subscriptions,21-Sep-21,2122/07,SME,Y,50%
355555,EO CHARGING,"5,837.80",EV Charge Points LA's,Grants,26-Jul-21,2122/07,SME,N,
355556,EO CHARGING,"1,020.00",Climate Change and Sustainabil,Misc Supplies & Services Costs,26-Jul-21,2122/07,SME,N,
355230,CORENERGY LIMITED,"212,876.00",Public Sector Decarbonisation,Contracted Services,30-Sep-21,2122/07,SME,N,
355300,PRIVATE LANDLORD,786.5,Guaranteed Rent Scheme,Rent Payable,06-Oct-21,2122/07,ST,N,
355281,COUNTRYSTYLE RECYCLING LTD,334.91,Bring Sites,Contracted Services,30-Sep-21,2122/07,SME,N,
355564,TEMPLE LETTINGS,650,Guaranteed Rent Scheme,Rent Payable,18-Oct-21,2122/07,SME,N,
355217,DGL QUALITY MANAGEMENT LTD,870.76,Needham Market Middle School,Prof & Consultancy Fees,30-Sep-21,2122/07,SME,N,
355486,RSK LAND & DEVELOPMENT ENGINEERING LTD,300,Strategic Assets,Prof & Consultancy Fees,11-Oct-21,2122/07,LGE,N,
355643,RSK LAND & DEVELOPMENT ENGINEERING LTD,500,Strategic Assets,Prof & Consultancy Fees,30-Sep-21,2122/07,LGE,N,
355644,RSK LAND & DEVELOPMENT ENGINEERING LTD,500,Strategic Assets,Prof & Consultancy Fees,30-Sep-21,2122/07,LGE,N,
355159,ARAN INSULATION LTD,"6,929.84",Insulation Imps,Improvements,30-Sep-21,2122/07,SME,N,
355573,ARAN INSULATION LTD,"3,301.04",Insulation Imps,Improvements,18-Oct-21,2122/07,SME,N,
354842,TREECONOMICS LTD,"8,310.00",Open Spaces,Contracted Services,16-Sep-21,2122/07,SME,Y,50.50%
355363,PEL UK RENTALS LTD,"18,691.00",Street & Major Road Cleansing,Bins,05-Oct-21,2122/07,SME,Y,50%
355238,IAN BOOTH CONSULTANT ENGINEER LTD,"2,460.00",Strategic Assets,Prof & Consultancy Fees,01-Oct-21,2122/07,SME,N,
355270,MARCHDELL LTD,715,Guaranteed Rent Scheme,Rent Payable,05-Oct-21,2122/07,SME,N,
355552,POLYSOLAR LTD,"172,037.86",Public Sector Decarbonisation,Contracted Services,01-Sep-21,2122/07,SME,N,
355328,IPSERV LTD,5.6,Wellbeing CCG Funding,"Equipment, Tools & Materials",01-Oct-21,2122/07,SME,N,
355328,IPSERV LTD,608.15,Communications,Commercial Printing,01-Oct-21,2122/07,SME,N,
355328,IPSERV LTD,870.99,Central Printing,Commercial Printing,01-Oct-21,2122/07,SME,N,
422207,IPSERV LTD,228.73,Communications,Commercial Printing,01-Sep-21,2122/07,SME,Y,0.01%
422207,IPSERV LTD,"2,325.27",Central Printing,Commercial Printing,01-Sep-21,2122/07,SME,N,
355687,ELMSWELL FOOTBALL CLUB,"1,131.66",Grants & Contrbns,Contributions & Donations,22-Oct-21,2122/07,SME,N,
355565,PRIVATE LANDLORD,669,Guaranteed Rent Scheme,Rent Payable,18-Oct-21,2122/07,ST,N,
355325,RJM BODY REPAIRS LTD,788.73,Building Services,Plant & Vehicle - Other costs,01-Jun-21,2122/07,ST,N,
355310,WALNES LTD T/A WALNES SEEDS,700,Devt Management - Apps,Biodiversity Task Force,27-Sep-21,2122/07,SME,N,
422203,PRIVATE LANDLORD,"1,400.00",Guaranteed Rent Scheme,Rent Payable,05-Oct-21,2122/07,ST,N,
355115,NORMANTON SCREENPRINT,345.45,Jnt Waste Contract,"Equipment, Tools & Materials",28-Sep-21,2122/07,SME,Y,50%
355404,DAVITT JONES BOULD LTD,360,Assets & Development,Prof & Consultancy Fees,11-Oct-21,2122/07,SME,N,
355507,THE BLOSSOM CHARITY,"2,000.00",RHSSF,Advertising&mkting (non-staff),08-Oct-21,2122/07,SME,N,
355672,GISLINGHAM AND DISTRICT MESSENGER,"1,000.00",Grants & Contrbns,Contributions & Donations,22-Oct-21,2122/07,SME,N,
355422,K FLATMAN BUILDERS,"3,433.00",Renovation/Home Repair Grants,Grants,12-Oct-21,2122/07,ST,N,
355423,K FLATMAN BUILDERS,"3,434.00",Renovation/Home Repair Grants,Grants,12-Oct-21,2122/07,ST,N,
355218,DJ HAILL LTD,"1,395.00",Mand Disabled Facilities Grant,Grants,01-Oct-21,2122/07,SME,N,
422206,BELVOIR LETTINGS (BSE),495,Guaranteed Rent Scheme,Rent Payable,12-Oct-21,2122/07,SME,N,
422206,BELVOIR LETTINGS (BSE),750,Guaranteed Rent Scheme,Misc Supplies & Services Costs,12-Oct-21,2122/07,SME,N,
355617,GIPPING VALLEY ARCHERS,"2,085.00",Suffolk Community Restart Fund,Grants,20-Oct-21,2122/07,SME,N,
355591,HEATHS HEATING,"1,475.00",Renovation/Home Repair Grants,Grants,20-Oct-21,2122/07,SME,N,
355609,BRIGHT ELECTRICAL SERVICES,"1,068.00",Mand Disabled Facilities Grant,Grants,20-Oct-21,2122/07,SME,N,
202,ANGLIAN WATER,-24.97,"11 Market Place, Stowmarket",Water Rates - Metered,20-Oct-21,2122/07,LGE,N,
202,ANGLIAN WATER,-611.54,Creeting Rd Depot,Water Rates - Metered,20-Oct-21,2122/07,LGE,Y,50%
202,ANGLIAN WATER,-30.15,General/Supervision & Mgmt,Water Rates - Metered,20-Oct-21,2122/07,LGE,N,
202,ANGLIAN WATER,-121.14,Headquarters General,Water Rates - Metered,20-Oct-21,2122/07,LGE,N,
202,ANGLIAN WATER,-109.54,Open Spaces,Water Rates - Metered,20-Oct-21,2122/07,LGE,N,
202,ANGLIAN WATER,-226.5,Public Conveniences,Water Rates - Metered,20-Oct-21,2122/07,LGE,N,
202,ANGLIAN WATER,-3.9,Recycling Centre,Water Rates - Metered,20-Oct-21,2122/07,LGE,N,
202,ANGLIAN WATER,-3.9,Sewage Treatment Works,Water Rates - Metered,20-Oct-21,2122/07,LGE,N,
202,ANGLIAN WATER,"-2,650.38",Sheltered Accommodation,Water Rates - Metered,20-Oct-21,2122/07,LGE,N,
202,ANGLIAN WATER,-18.91,Tacon Close Eye TDP,Water Rates - Metered,20-Oct-21,2122/07,LGE,N,
202,ANGLIAN WATER,-42.85,Temporary Accommodation,Water Rates - Metered,20-Oct-21,2122/07,LGE,N,
202,ANGLIAN WATER,-39.87,Tenancy Services,Water Rates - Metered,20-Oct-21,2122/07,LGE,N,
202,ANGLIAN WATER,-9.38,Wingfield Barns,Water Rates - Metered,20-Oct-21,2122/07,LGE,N,
879,IPSWICH BOROUGH COUNCIL,-228.73,Communications,Commercial Printing,21-Oct-21,2122/07,LGE,Y,0.01%
879,IPSWICH BOROUGH COUNCIL,"-2,325.27",Central Printing,Commercial Printing,21-Oct-21,2122/07,LGE,N,
881,E.ON,-84.03,Tenancy Services,Electricity,29-Oct-21,2122/07,LGE,N,
882,E.ON,84.03,Tenancy Services,Electricity,29-Oct-21,2122/07,LGE,N,
355670,KNOWLES ASSOCIATES TFM LTD,-95,Building Services,Lease Cars - Payment,19-Oct-21,2122/07,SME,Y,50%
355157,WATERLOGIC,-5.88,Creeting Rd Depot,Contracted Services,29-Sep-21,2122/07,LGE,Y,50%
201,RJM BODY REPAIRS LTD,-788.73,Building Services,Plant & Vehicle - Other costs,14-Oct-21,2122/07,ST,N,
356020,AE WHITE SURFACING,550,Building Services,Repairs,08-Nov-21,2122/08,SME,N,
356059,AE WHITE SURFACING,550,Building Services,Repairs,10-Nov-21,2122/08,SME,N,
355857,AGROCO TRAILERS,"2,290.00",Open Spaces,"Equipment, Tools & Materials",02-Nov-21,2122/08,SME,N,
356145,ANGLIA RUSKIN UNIVERSITY,"5,781.00",Organisational Devt,Post-Entry Training,30-Oct-21,2122/08,LGE,Y,50%
355651,ANGLIAN WATER,"1,240.42",Water Sampling,Sampling & Analysis,20-Oct-21,2122/08,LGE,N,
355847,ANGLIAN WATER,252.5,Tenancy Services,Water Rates - Metered,26-Oct-21,2122/08,LGE,N,
356319,ANGLIAN WATER,272.7,Sheltered Accommodation,Water Rates - Metered,17-Nov-21,2122/08,LGE,N,
356339,ANGLIAN WATER,523.57,Sheltered Accommodation,Water Rates - Metered,22-Nov-21,2122/08,LGE,N,
356340,ANGLIAN WATER,371.19,Tenancy Services,Water Rates - Metered,16-Nov-21,2122/08,LGE,N,
356357,ANGLIAN WATER,"1,301.25",Water Sampling,Sampling & Analysis,25-Nov-21,2122/08,LGE,N,
356204,BEN BURGESS GARDEN EQUIPMENT,"16,500.00",Vehicle and Plant Renewals,Plant & Vehicle - Purchase,16-Nov-21,2122/08,SME,N,
356341,BINDER LTD,81,Sewage Treatment Works,Contracted Services,15-Nov-21,2122/08,SME,N,
356341,BINDER LTD,183.75,Sewage Treatment Works,Repairs,15-Nov-21,2122/08,SME,N,
355869,BLUE FLAME (COLCHESTER) LTD,"16,606.64",Planned Maint - Heating,Property Servicing,28-Oct-21,2122/08,SME,N,
356148,BLUE FLAME (COLCHESTER) LTD,"5,562.67",Central Heating,Improvements,09-Sep-21,2122/08,SME,N,
356148,BLUE FLAME (COLCHESTER) LTD,"2,646.77",Planned Maint - Heating,Property Servicing,09-Sep-21,2122/08,SME,N,
356148,BLUE FLAME (COLCHESTER) LTD,133.23,PV Panels,Contracted Services,09-Sep-21,2122/08,SME,N,
356148,BLUE FLAME (COLCHESTER) LTD,14.69,Rewiring,Improvements,09-Sep-21,2122/08,SME,N,
356148,BLUE FLAME (COLCHESTER) LTD,850.36,Sheltered Units-Gen.Imp,Improvements,09-Sep-21,2122/08,SME,N,
356148,BLUE FLAME (COLCHESTER) LTD,12.24,Smoke Alarms (Bbgh Standard),Improvements,09-Sep-21,2122/08,SME,N,
356148,BLUE FLAME (COLCHESTER) LTD,5.87,Voids Maintenance,Repairs,09-Sep-21,2122/08,SME,N,
422236,BLUE FLAME (COLCHESTER) LTD,"27,046.50",Central Heating,Improvements,03-Nov-21,2122/08,SME,N,
422236,BLUE FLAME (COLCHESTER) LTD,8.5,Housing Rechargeable Works,Repairs,03-Nov-21,2122/08,SME,N,
422236,BLUE FLAME (COLCHESTER) LTD,"5,622.99",Planned Maint - Heating,Property Servicing,03-Nov-21,2122/08,SME,N,
422236,BLUE FLAME (COLCHESTER) LTD,"1,501.52",PV Panels,Contracted Services,03-Nov-21,2122/08,SME,N,
422236,BLUE FLAME (COLCHESTER) LTD,360,Voids Maintenance,Repairs,03-Nov-21,2122/08,SME,N,
422238,BLUE FLAME (COLCHESTER) LTD,"18,031.00",Central Heating,Improvements,10-Nov-21,2122/08,SME,N,
422238,BLUE FLAME (COLCHESTER) LTD,103.89,Housing Rechargeable Works,Repairs,10-Nov-21,2122/08,SME,N,
422238,BLUE FLAME (COLCHESTER) LTD,"7,404.31",Planned Maint - Heating,Property Servicing,10-Nov-21,2122/08,SME,N,
422238,BLUE FLAME (COLCHESTER) LTD,"1,003.00",PV Panels,Contracted Services,10-Nov-21,2122/08,SME,N,
422238,BLUE FLAME (COLCHESTER) LTD,477.3,Voids Maintenance,Repairs,10-Nov-21,2122/08,SME,N,
422243,BLUE FLAME (COLCHESTER) LTD,"3,987.69",Planned Maint - Heating,Property Servicing,17-Nov-21,2122/08,SME,N,
422243,BLUE FLAME (COLCHESTER) LTD,"9,015.50",Central Heating,Improvements,17-Nov-21,2122/08,SME,N,
422243,BLUE FLAME (COLCHESTER) LTD,"1,437.89",PV Panels,Contracted Services,17-Nov-21,2122/08,SME,N,
422243,BLUE FLAME (COLCHESTER) LTD,40,Housing Rechargeable Works,Repairs,17-Nov-21,2122/08,SME,N,
422248,BLUE FLAME (COLCHESTER) LTD,"1,841.91",PV Panels,Contracted Services,24-Nov-21,2122/08,SME,N,
422248,BLUE FLAME (COLCHESTER) LTD,"8,390.50",Sheltered Units-Gen.Imp,Improvements,24-Nov-21,2122/08,SME,N,
422248,BLUE FLAME (COLCHESTER) LTD,"9,015.50",Sheltered Units-Gen.Imp,Improvements,24-Nov-21,2122/08,SME,N,
422248,BLUE FLAME (COLCHESTER) LTD,"9,015.50",Sheltered Units-Gen.Imp,Improvements,24-Nov-21,2122/08,SME,N,
422248,BLUE FLAME (COLCHESTER) LTD,"3,697.26",Planned Maint - Heating,Property Servicing,24-Nov-21,2122/08,SME,N,
422248,BLUE FLAME (COLCHESTER) LTD,101.96,Voids Maintenance,Repairs,24-Nov-21,2122/08,SME,N,
356038,BOWER FULLER,958.83,Responsive maintenance,Fire Prevention,29-Oct-21,2122/08,SME,N,
356039,BOWER FULLER,798.23,Cedars Park,Fire Prevention,29-Oct-21,2122/08,SME,N,
356040,BOWER FULLER,600.82,Tenancy Services,Fire Prevention,29-Oct-21,2122/08,SME,N,
356041,BOWER FULLER,600.82,Tenancy Services,Fire Prevention,29-Oct-21,2122/08,SME,N,
356042,BOWER FULLER,600.82,Tenancy Services,Fire Prevention,29-Oct-21,2122/08,SME,N,
356043,BOWER FULLER,369.64,Responsive maintenance,Fire Prevention,29-Oct-21,2122/08,SME,N,
356045,BOWER FULLER,377.13,Sheltered Accommodation,Repairs,29-Oct-21,2122/08,SME,N,
356046,BOWER FULLER,391.2,Sheltered Accommodation,Fire Prevention,29-Oct-21,2122/08,SME,N,
356047,BOWER FULLER,270.61,Wingfield Barns,Repairs,29-Oct-21,2122/08,SME,N,
356067,BUTTON & TURNER LTD,"1,032.80",Open Spaces,Plant & Vehicle - Other costs,26-Oct-21,2122/08,SME,N,
355956,AQUASAMPLERS,300,Water Sampling,Sampling & Analysis,31-Oct-21,2122/08,SME,N,
356197,CENTRAL TYRE LTD,472.16,Open Spaces,Plant & Vehicle - Other costs,17-Nov-21,2122/08,SME,N,
356030,CHIPSIDE LTD,781.5,C Parks General,Contracted Services,31-Oct-21,2122/08,SME,N,
355979,CLARKE FENCING LTD,"5,995.00","Fences, Gates and Walls",Improvements,04-Nov-21,2122/08,SME,N,
355729,CLC CONTRACTORS LTD,"8,143.00",Planned Maint - Ext Painting,Major Contracts,26-Oct-21,2122/08,SME,N,
355699,D W ADAMS LTD,"6,731.40",Council House Adaptions,Improvements,25-Oct-21,2122/08,SME,N,
355969,D W ADAMS LTD,711,Disabled Facilities (Revenue),Repairs,08-Nov-21,2122/08,SME,N,
355970,D W ADAMS LTD,948,Building Services,Repairs,08-Nov-21,2122/08,SME,N,
355971,D W ADAMS LTD,948,Building Services,Repairs,08-Nov-21,2122/08,SME,N,
355973,D W ADAMS LTD,"11,078.92",Council House Adaptions,Improvements,08-Nov-21,2122/08,SME,N,
356152,DOLPHIN STAIRLIFTS (EAST ANGLIA) LTD,"2,121.00",Mand Disabled Facilities Grant,Grants,16-Nov-21,2122/08,SME,N,
356264,DOLPHIN STAIRLIFTS (EAST ANGLIA) LTD,"2,128.00",Mand Disabled Facilities Grant,Grants,22-Nov-21,2122/08,SME,N,
355770,EAST ANGLIA CLEANING SERVICES LTD,"1,374.49",Jnt Waste Contract,General Cleaning,28-Oct-21,2122/08,SME,Y,50%
356113,EAST ANGLIAN CHAMBERS,416.67,CB Lettings,Prof & Consultancy Fees,03-Nov-21,2122/08,SME,N,
355750,EAST OF ENGLAND LGA,"5,100.00",Management Team,Prof & Consultancy Fees,26-Oct-21,2122/08,SME,Y,50%
355746,ENGLISH SECURITY,185.4,Building Services,Fire Prevention,25-Oct-21,2122/08,SME,N,
355746,ENGLISH SECURITY,206,Creeting Rd Depot,Fire Prevention,25-Oct-21,2122/08,SME,Y,50%
355746,ENGLISH SECURITY,154.5,Headquarters General,Fire Prevention,25-Oct-21,2122/08,SME,N,
355746,ENGLISH SECURITY,270,Other HRA Temp Accommodation,Fire Prevention,25-Oct-21,2122/08,SME,N,
355728,ENGLISH SECURITY,"7,358.70",Sheltered Accommodation,Fire Prevention,30-Sep-21,2122/08,SME,N,
355746,ENGLISH SECURITY,544.1,Temporary Accommodation,Fire Prevention,25-Oct-21,2122/08,SME,N,
355746,ENGLISH SECURITY,355.35,Wingfield Barns,Fire Prevention,25-Oct-21,2122/08,SME,N,
355964,ENGLISH SECURITY,281.01,Sheltered Accommodation,Fire Prevention,03-Nov-21,2122/08,SME,N,
355965,ENGLISH SECURITY,281.01,Sheltered Accommodation,Fire Prevention,03-Nov-21,2122/08,SME,N,
355982,ENGLISH SECURITY,"1,212.05",Sheltered Accommodation,Fire Prevention,01-Nov-21,2122/08,SME,N,
355991,ENGLISH SECURITY,"1,336.25",Sheltered Accommodation,Fire Prevention,03-Nov-21,2122/08,SME,N,
356009,ENGLISH SECURITY,640.75,Sheltered Accommodation,Emergency Lighting,03-Nov-21,2122/08,SME,N,
356060,ENGLISH SECURITY,981.55,Sheltered Accommodation,Fire Prevention,10-Nov-21,2122/08,SME,N,
355717,FAAC UK LTD,"5,580.00",C Parks General,Contracted Services,20-Oct-21,2122/08,LGE,N,
356156,FAAC UK LTD,285,C Parks General,Repairs,10-Nov-21,2122/08,LGE,N,
355859,FELGAINS CARE CENTRE,"3,793.00",Council House Adaptions,Improvements,28-Sep-21,2122/08,SME,N,
355860,FELGAINS CARE CENTRE,"3,361.00",Council House Adaptions,Improvements,11-Oct-21,2122/08,SME,N,
355861,FELGAINS CARE CENTRE,"2,483.00",Council House Adaptions,Improvements,14-Oct-21,2122/08,SME,N,
355708,FELLBRIDGE BUILDING SERVICES,"5,025.72",Building Services,Repairs,25-Oct-21,2122/08,SME,N,
355714,FELLBRIDGE BUILDING SERVICES,"1,744.64",Building Services,Repairs,25-Oct-21,2122/08,SME,N,
355800,FELLBRIDGE BUILDING SERVICES,"5,895.26",Building Services,Repairs,28-Oct-21,2122/08,SME,N,
355920,FELLBRIDGE BUILDING SERVICES,"8,367.77",Building Services,Repairs,04-Nov-21,2122/08,SME,N,
355921,FELLBRIDGE BUILDING SERVICES,"12,756.15",Building Services,Repairs,04-Nov-21,2122/08,SME,N,
355922,FELLBRIDGE BUILDING SERVICES,"23,084.66",Building Services,Repairs,04-Nov-21,2122/08,SME,N,
356175,FELLBRIDGE BUILDING SERVICES,"21,109.82",Building Services,Repairs,15-Nov-21,2122/08,SME,N,
356177,FELLBRIDGE BUILDING SERVICES,765.77,Building Services,Repairs,15-Nov-21,2122/08,SME,N,
355796,FORE-MOST GARAGE DOORS LTD,729.45,Building Services,Repairs,31-Oct-21,2122/08,SME,N,
355877,GB ADAPTIONS LTD,"5,410.00",Mand Disabled Facilities Grant,Grants,03-Nov-21,2122/08,SME,N,
356132,GB ADAPTIONS LTD,"5,368.00",Mand Disabled Facilities Grant,Grants,15-Nov-21,2122/08,SME,N,
356130,G4S CASH SOLUTIONS LTD,"1,018.16",Financial Servs,Contracted Services,31-Oct-21,2122/08,LGE,N,
355792,GHB ROOFING,"1,362.84",Building Services,Repairs,12-Oct-21,2122/08,SME,N,
355752,HQN LTD,275,Organisational Devt,Training,14-Sep-21,2122/08,SME,Y,50%
355730,HUDSON MEDIA PARTNERSHIP LTD,465,Events & Awards,Advertising&mkting (non-staff),27-Oct-21,2122/08,SME,Y,50%
356302,INDESPENSION LTD,"2,995.00",Vehicle and Plant Renewals,Plant & Vehicle - Purchase,24-Nov-21,2122/08,SME,N,
355233,J NAREY & SONS,"1,212.25",Open Spaces,Horticultural Purchases,15-Sep-21,2122/08,SME,N,
355831,J NAREY & SONS,267.5,Open Spaces,Horticultural Purchases,14-Oct-21,2122/08,SME,N,
355605,KARZEES LTD,325,Needham Lake Vis Centre (CAP),"Equipment, Tools & Materials",20-Oct-21,2122/08,SME,N,
355968,KEN GRIME & SON LTD,"1,113.23",Building Services,Repairs,08-Nov-21,2122/08,SME,N,
356324,KENDA-CLEAN,62,Creeting Rd Depot,Window Cleaning,23-Nov-21,2122/08,SME,Y,50%
356324,KENDA-CLEAN,"2,074.00",Sheltered Accommodation,Window Cleaning,23-Nov-21,2122/08,SME,N,
356324,KENDA-CLEAN,123,Temporary Accommodation,Window Cleaning,23-Nov-21,2122/08,SME,N,
355849,KEYWAYS THE LOCKSMITHS LTD,320,Temporary Accommodation,BMBS Repairs Work,02-Nov-21,2122/08,SME,N,
355589,M & H CIVIL ENGINEERING LTD,"1,020.40",Building Services,Repairs,19-Oct-21,2122/08,SME,N,
355590,M & H CIVIL ENGINEERING LTD,870,Building Services,Repairs,19-Oct-21,2122/08,SME,N,
355706,M & H CIVIL ENGINEERING LTD,712.76,Building Services,Repairs,22-Oct-21,2122/08,SME,N,
355743,M & H CIVIL ENGINEERING LTD,350,Building Services,Repairs,20-Sep-21,2122/08,SME,N,
355879,M & H CIVIL ENGINEERING LTD,697.5,Building Services,Repairs,25-Oct-21,2122/08,SME,N,
355880,M & H CIVIL ENGINEERING LTD,506.5,Building Services,Repairs,25-Oct-21,2122/08,SME,N,
355954,M & H CIVIL ENGINEERING LTD,"1,066.55",Building Services,Repairs,03-Nov-21,2122/08,SME,N,
356139,M & H CIVIL ENGINEERING LTD,350,Major Imps,Improvements,15-Nov-21,2122/08,SME,N,
355870,MALJON TIMBER PRESERVATION LTD,509,Building Services,Repairs,02-Nov-21,2122/08,SME,N,
355799,MATERIAL CHANGE COMPOSTING LTD,379.21,Open Spaces,Waste Disposal,31-Oct-21,2122/08,LGE,N,
355726,MB TREES (EAST ANGLIA) LTD,"1,480.00",Tenancy Services,Tree felling/maintenance,26-Oct-21,2122/08,SME,N,
355765,MB TREES (EAST ANGLIA) LTD,480,Amenity Areas,Tree felling/maintenance,28-Oct-21,2122/08,SME,N,
355767,MB TREES (EAST ANGLIA) LTD,820,Amenity Areas,Tree felling/maintenance,28-Oct-21,2122/08,SME,N,
355768,MB TREES (EAST ANGLIA) LTD,"1,480.00",Public Tree Programme,Tree felling/maintenance,28-Oct-21,2122/08,SME,N,
356347,MB TREES (EAST ANGLIA) LTD,380,Tenancy Services,Tree felling/maintenance,25-Nov-21,2122/08,SME,N,
355614,MID SUFFOLK FENCING LTD,"1,395.00",Building Services,Repairs,09-Oct-21,2122/08,SME,N,
355808,MID SUFFOLK FENCING LTD,425,Building Services,Repairs,26-Oct-21,2122/08,SME,N,
355809,MID SUFFOLK FENCING LTD,450,Building Services,Repairs,26-Oct-21,2122/08,SME,N,
356231,PMC POLYTHENE LTD,466,Street & Major Road Cleansing,Bins,19-Nov-21,2122/08,SME,N,
355875,PRO-FLAT SPECIALIST SERVICES LTD,"1,995.00",Major Imps,Improvements,03-Nov-21,2122/08,SME,N,
355733,REID PLUMBING & HEATING CONTRACTORS LTD,"9,482.66",Central Heating,Major Contracts,27-Oct-21,2122/08,SME,N,
355793,REID PLUMBING & HEATING CONTRACTORS LTD,"18,521.80",Central Heating,Major Contracts,30-Oct-21,2122/08,SME,N,
355873,REID PLUMBING & HEATING CONTRACTORS LTD,"9,194.31",Central Heating,Major Contracts,03-Nov-21,2122/08,SME,N,
355934,REID PLUMBING & HEATING CONTRACTORS LTD,"19,462.42",Central Heating,Major Contracts,05-Nov-21,2122/08,SME,N,
356028,REID PLUMBING & HEATING CONTRACTORS LTD,"4,826.47",Central Heating,Major Contracts,10-Nov-21,2122/08,SME,N,
355856,SACKERS LTD,"3,158.37",Building Services,Waste Disposal,31-Oct-21,2122/08,SME,Y,50%
355594,SANDY LANE NURSERY,"1,106.50",Devt Management - Apps,Biodiversity Task Force,19-Oct-21,2122/08,SME,N,
355595,SANDY LANE NURSERY,"1,894.50",Devt Management - Apps,Biodiversity Task Force,19-Oct-21,2122/08,SME,N,
356203,SANDY LANE NURSERY,936,Devt Management - Apps,Biodiversity Task Force,16-Nov-21,2122/08,SME,N,
356313,SANDY LANE NURSERY,"2,025.00",Devt Management - Apps,Biodiversity Task Force,30-Nov-21,2122/08,SME,N,
356183,SPALDINGS LTD,647,Street & Major Road Cleansing,"Equipment, Tools & Materials",16-Nov-21,2122/08,SME,Y,50%
356179,TANKCHANGE LTD,350,Central Heating,Improvements,10-Nov-21,2122/08,SME,N,
355854,THE COPYRIGHT LICENSING AGENCY LTD,974.82,Management Team,Subscriptions,06-Oct-21,2122/08,LGE,Y,50%
355960,THERMATECH,475,"Day Nursery, Chilton Fields",Fire Prevention,08-Nov-21,2122/08,SME,N,
354882,THOMPSON COOPER LTD,547.25,Open Spaces,"Equipment, Tools & Materials",20-Sep-21,2122/08,SME,N,
355776,TOMLINSON GROUNDCARE,"1,500.00",Business Performance,Grants,29-Oct-21,2122/08,SME,N,
356134,TRISCAN SYSTEMS LTD,"1,379.15",Open Spaces,Plant & Vehicle Fuel,10-Nov-21,2122/08,SME,Y,50%
355760,WEST END REHOMING,"11,000.00",Dog Control,Kennels Retainer,01-Oct-21,2122/08,SME,N,
355817,WEST END REHOMING,457.74,Dog Control,Collection Charges,01-Nov-21,2122/08,SME,N,
355908,WINDIMAN LTD,735,Building Services,Repairs,04-Nov-21,2122/08,SME,N,
355923,WINDIMAN LTD,735,Building Services,Repairs,04-Nov-21,2122/08,SME,N,
356057,WINDIMAN LTD,"1,135.00",Building Services,Repairs,10-Nov-21,2122/08,SME,N,
356104,WINDIMAN LTD,569.7,Building Services,Repairs,11-Nov-21,2122/08,SME,N,
355805,WORKWEAR (EAST ANGLIA) LTD,327.28,Open Spaces,Protective clothing,27-Oct-21,2122/08,SME,N,
355913,WORKWEAR (EAST ANGLIA) LTD,963.97,Street & Major Road Cleansing,Protective clothing,05-Nov-21,2122/08,SME,N,
355945,WORKWEAR (EAST ANGLIA) LTD,"1,097.70",Open Spaces,Protective clothing,05-Nov-21,2122/08,SME,N,
355425,ARCHANT COMMUNITY MEDIA LTD,507.14,Civil Parking Enforcement,Advertising&mkting (non-staff),11-Oct-21,2122/08,LGE,N,
355696,ARCHANT COMMUNITY MEDIA LTD,315.18,Gambling & Small Lotteries,Advertising&mkting (non-staff),23-Oct-21,2122/08,LGE,N,
355697,ARCHANT COMMUNITY MEDIA LTD,875.5,Devt Management - Apps,Advertising&mkting (non-staff),23-Oct-21,2122/08,LGE,N,
355868,ARCHANT COMMUNITY MEDIA LTD,875.5,Devt Management - Apps,Advertising&mkting (non-staff),31-Oct-21,2122/08,LGE,N,
355967,ARCHANT COMMUNITY MEDIA LTD,770.44,Devt Management - Apps,Advertising&mkting (non-staff),06-Nov-21,2122/08,LGE,N,
356119,ARCHANT COMMUNITY MEDIA LTD,875.5,Devt Management - Apps,Advertising&mkting (non-staff),13-Nov-21,2122/08,LGE,N,
356023,LABC EAST ANGLIA,570,Bldg Regs Chargeable Serv,Subscriptions,30-Apr-21,2122/08,SME,Y,45%
355769,LOCAL GOVERNMENT ASSOCIATION,495,Management Team,Conference Expenses,28-Oct-21,2122/08,LGE,Y,50%
355769,LOCAL GOVERNMENT ASSOCIATION,990,Cost of Democracy,Member's Courses & Conferences,28-Oct-21,2122/08,LGE,N,
355734,MITIE PROPERTY SERVICES (UK) LTD,"9,930.67",Planned Maint - Ext Painting,Major Contracts,27-Oct-21,2122/08,SME,N,
355764,BUILDBASE,907.63,Open Spaces,"Equipment, Tools & Materials",28-Oct-21,2122/08,LGE,N,
356105,IPSWICH BOROUGH COUNCIL,"255,673.54",Shared Revenues Partnership,Major Contracts,10-Nov-21,2122/08,LGE,N,
356123,IPSWICH BOROUGH COUNCIL,825.01,Shared Revenues Partnership,Contributions to other Bodies,10-Nov-21,2122/08,LGE,N,
355570,SERCO LTD,"8,075.33",Domestic Waste,Refuse Contract,14-Oct-21,2122/08,LGE,Y,50%
356216,SERCO LTD,"4,377.00",Domestic Waste,Refuse Contract,17-Nov-21,2122/08,LGE,Y,50%
356217,SERCO LTD,"22,179.86",Trade Waste,Refuse Contract,17-Nov-21,2122/08,LGE,Y,60%
356217,SERCO LTD,"77,664.58",Garden Waste,Refuse Contract,17-Nov-21,2122/08,LGE,Y,48%
356217,SERCO LTD,"292,516.56",Domestic Waste,Refuse Contract,17-Nov-21,2122/08,LGE,Y,48%
356218,SERCO LTD,"8,075.33",Jnt Waste Contract,Plant & Vehicle Fuel,17-Nov-21,2122/08,LGE,Y,50%
356033,TRAVIS PERKINS TRADING CO LTD,435,Building Services,"Equipment, Tools & Materials",05-Nov-21,2122/08,LGE,Y,50%
356034,TRAVIS PERKINS TRADING CO LTD,475,Building Services,"Equipment, Tools & Materials",05-Nov-21,2122/08,LGE,Y,50%
356185,TRAVIS PERKINS TRADING CO LTD,"42,098.62",Building Services,"Equipment, Tools & Materials",01-Nov-21,2122/08,LGE,Y,51.50%
422240,EDF ENERGY,95.01,"11 Market Place, Stowmarket",Electricity,12-Nov-21,2122/08,LGE,N,
422240,EDF ENERGY,309.31,C Parks General,Electricity,12-Nov-21,2122/08,LGE,N,
422240,EDF ENERGY,535.96,Creeting Rd Depot,Electricity,12-Nov-21,2122/08,LGE,Y,50%
422240,EDF ENERGY,302.09,Headquarters General,Electricity,12-Nov-21,2122/08,LGE,N,
422240,EDF ENERGY,"16,434.33",Leisure Contract,Electricity,12-Nov-21,2122/08,LGE,N,
422240,EDF ENERGY,38.02,Needham Market Middle School,Electricity,12-Nov-21,2122/08,LGE,N,
422240,EDF ENERGY,349.31,Open Spaces,Electricity,12-Nov-21,2122/08,LGE,N,
422240,EDF ENERGY,"1,186.12",Other HRA Temp Accommodation,Electricity,12-Nov-21,2122/08,LGE,N,
422240,EDF ENERGY,35.42,Public Conveniences,Electricity,12-Nov-21,2122/08,LGE,N,
422240,EDF ENERGY,98.43,Pure Gym & Adjacent Building,Electricity,12-Nov-21,2122/08,LGE,N,
422240,EDF ENERGY,3.8,Recycling Centre,Electricity,12-Nov-21,2122/08,LGE,N,
422240,EDF ENERGY,367.76,Sewage Treatment Works,Electricity,12-Nov-21,2122/08,LGE,N,
422240,EDF ENERGY,"9,452.92",Sheltered Accommodation,Electricity,12-Nov-21,2122/08,LGE,N,
422240,EDF ENERGY,160.14,Tacon Close Eye TDP,Electricity,12-Nov-21,2122/08,LGE,N,
422240,EDF ENERGY,439.84,Temporary Accommodation,Electricity,12-Nov-21,2122/08,LGE,N,
422240,EDF ENERGY,"1,456.56",Tenancy Services,Electricity,12-Nov-21,2122/08,LGE,N,
422240,EDF ENERGY,"1,072.19",Wingfield Barns,Electricity,12-Nov-21,2122/08,LGE,N,
355867,J BREHENY CONTRACTORS LTD,"229,559.81",Strategic Assets,Major Contracts,02-Nov-21,2122/08,LGE,N,
356083,J BREHENY CONTRACTORS LTD,"1,386.56",Unadopted Drains & Sewers,Improvements,26-Oct-21,2122/08,LGE,N,
422242,GPC BARCLAYS,"5,348.51",Current Assets,Barclaycard Control,14-Nov-21,2122/08,LGE,Y,23%
422230,ALLSTAR BUSINESS SOLUTIONS LTD,94.81,Housing Options,Plant & Vehicle Fuel,31-Oct-21,2122/08,SME,Y,50%
422230,ALLSTAR BUSINESS SOLUTIONS LTD,"7,124.54",Building Services,Plant & Vehicle Fuel,31-Oct-21,2122/08,SME,Y,50%
422235,COMPUTERSHARE ,"1,276.00",Current Assets,ChildCare Vouchers-Control,29-Oct-21,2122/08,LGE,N,
356158,DEBENHAM VILLAGE HALL & PLAYING FIELD TR,845,Suffolk Community Restart Fund,Grants,16-Nov-21,2122/08,SME,N,
355931,HAUGHLEY PARISH COUNCIL,"22,595.00",S106 Open Spaces Expenditure,Grants,05-Nov-21,2122/08,SME,N,
356169,HAUGHLEY PARISH COUNCIL,"7,124.00",Community Fund Projects-Grants,Grants,16-Nov-21,2122/08,SME,N,
356155,WALSHAM LE WILLOWS SPORTS CLUB,972,Suffolk Community Restart Fund,Grants,16-Nov-21,2122/08,SME,N,
355468,SUFFOLK COUNTY COUNCIL,"1,340.00",Land Chgs,Contracted Services,13-Oct-21,2122/08,LGE,N,
355747,SUFFOLK COUNTY COUNCIL,"1,153.25",Organisational Devt,Recruitment,26-Oct-21,2122/08,LGE,Y,50%
355927,SUFFOLK COUNTY COUNCIL,"24,055.86",Domestic Waste,MRF Disposal,04-Nov-21,2122/08,LGE,N,
355927,SUFFOLK COUNTY COUNCIL,"22,294.20",Garden Waste,Garden Waste Disposal,04-Nov-21,2122/08,LGE,N,
356161,SUFFOLK COUNTY COUNCIL,"1,795.00",Land Chgs,Contracted Services,15-Nov-21,2122/08,LGE,N,
355766,FENN WRIGHT LLP,450,General/Supervision & Mgmt,Prof & Consultancy Fees,28-Oct-21,2122/08,SME,N,
355846,FENN WRIGHT LLP,400,Home Ownership,Prof & Consultancy Fees,28-Oct-21,2122/08,SME,N,
355758,TELEFONICA UK LIMITED - O2,"1,361.21",ICT,Telephone Costs,27-Oct-21,2122/08,LGE,Y,50%
356378,TELEFONICA UK LIMITED - O2,"1,359.68",ICT,Telephone Costs,27-Nov-21,2122/08,LGE,Y,50%
356323,EAST OF ENGLAND CO-OPERATIVE SOCIETY LTD,"1,293.00",General Rechargeable Works,Misc Supplies & Services Costs,23-Nov-21,2122/08,LGE,N,
355713,SIGNS FOR YOU LTD,465,BRRP - Successful & Skilled,Prof & Consultancy Fees,25-Oct-21,2122/08,SME,N,
422244,GAZPROM ENERGY,16.01,"11 Market Place, Stowmarket",Gas,19-Nov-21,2122/08,SME,N,
422244,GAZPROM ENERGY,111.96,Creeting Rd Depot,Gas,19-Nov-21,2122/08,SME,Y,50%
422244,GAZPROM ENERGY,26.99,Headquarters General,Gas,19-Nov-21,2122/08,SME,N,
422244,GAZPROM ENERGY,65.79,Pure Gym & Adjacent Building,Gas,19-Nov-21,2122/08,SME,N,
422244,GAZPROM ENERGY,"3,031.67",Sheltered Accommodation,Gas,19-Nov-21,2122/08,SME,N,
422244,GAZPROM ENERGY,290.21,Temporary Accommodation,Gas,19-Nov-21,2122/08,SME,N,
422244,GAZPROM ENERGY,276.18,Tenancy Services,Gas,19-Nov-21,2122/08,SME,N,
356298,PREMIER BODYWORKS,"1,126.77",Street & Major Road Cleansing,Plant & Vehicle - Other costs,19-Nov-21,2122/08,SME,N,
356243,PATHFINDER DEVELOPMENT CONSULTANTS LTD,"2,880.00","The Broadway, Badwell Ash",Prof & Consultancy Fees,19-Nov-21,2122/08,SME,N,
355903,TEMPLE GROUP LTD,"4,860.00",Stowmarket Middle School,Prof & Consultancy Fees,21-Oct-21,2122/08,SME,N,
355906,TEMPLE GROUP LTD,845,Stowmarket Middle School,Prof & Consultancy Fees,21-Oct-21,2122/08,SME,N,
356236,TEMPLE GROUP LTD,"10,055.00",Stowmarket Middle School,Prof & Consultancy Fees,19-Nov-21,2122/08,SME,N,
355890,WHYBROW PROPERTY SOLUTIONS LTD,"4,696.37",Building Services,Repairs,03-Nov-21,2122/08,SME,N,
355891,WHYBROW PROPERTY SOLUTIONS LTD,"16,236.93",Major Imps,Major Contracts,03-Nov-21,2122/08,SME,N,
355783,ARMSTRONG YORK ASBESTOS ENVIRONMENTAL,"5,885.67",Asbestos Survey & Reinspection,Prof & Consultancy Fees,29-Oct-21,2122/08,SME,N,
356022,EXPERIAN LTD,800,Economy & Business,Prof & Consultancy Fees,09-Nov-21,2122/08,SME,Y,50%
355928,THE MIX STOWMARKET LTD,270,BRRP - Successful & Skilled,Prof & Consultancy Fees,29-Oct-21,2122/08,SME,N,
355928,THE MIX STOWMARKET LTD,90,BRRP - Successful & Skilled,Prof & Consultancy Fees,29-Oct-21,2122/08,SME,N,
355832,TRADITION (UK) LTD,"4,200.00",Treasury Management,Prof & Consultancy Fees,29-Oct-21,2122/08,LGE,N,
356291,COMMUNITY ACTION SUFFOLK,"2,915.35",Community Housing Fund,Grants,24-Nov-21,2122/08,SME,N,
356237,DALROD (UK) LTD,392,Creeting Rd Depot,Grounds & Site Maintenance,19-Nov-21,2122/08,SME,Y,50%
355834,OPUS PEOPLE SOLUTIONS LTD,"1,264.61",Current Liabilities,Agency Staff Holding A/C,28-Oct-21,2122/08,SME,N,
355933,OPUS PEOPLE SOLUTIONS LTD,"1,095.27",Current Liabilities,Agency Staff Holding A/C,04-Nov-21,2122/08,SME,Y,24%
356124,OPUS PEOPLE SOLUTIONS LTD,958.46,Current Liabilities,Agency Staff Holding A/C,11-Nov-21,2122/08,SME,Y,21.50%
356214,OPUS PEOPLE SOLUTIONS LTD,"1,694.36",Current Liabilities,Agency Staff Holding A/C,18-Nov-21,2122/08,SME,Y,29%
355771,VERTAS GROUP LTD,"4,557.00",Stowmarket CAP,Operating Lease Payments,28-Oct-21,2122/08,SME,Y,50%
355771,VERTAS GROUP LTD,"3,307.00",Stowmarket CAP,Contracted Services,28-Oct-21,2122/08,SME,Y,50%
355772,VERTAS GROUP LTD,"41,000.00",Endeavour House - HQ,Operating Lease Payments,28-Oct-21,2122/08,SME,Y,50%
355772,VERTAS GROUP LTD,"42,500.00",Endeavour House - HQ,Contracted Services,28-Oct-21,2122/08,SME,Y,50%
355929,VERTAS GROUP LTD,"1,395.00",Unapportionable Central OHs,Security Systems,31-Oct-21,2122/08,SME,N,
356194,4PRINCIPLES CONSTRUCTION LTD,"1,626.73",Mand Disabled Facilities Grant,Grants,17-Nov-21,2122/08,SME,N,
356170,MATT ALLMAN LTD T/A MOVEITCLEARITFINDIT,412.5,Homelessness Private Sector,Removal Expenses,15-Nov-21,2122/08,SME,N,
355690,BIRKETTS LLP,"2,607.50",Organisational Devt,Legal Expenses,29-Sep-21,2122/08,LGE,Y,50%
356114,BIRKETTS LLP,"6,405.00",Planning Enforcement,Legal Expenses,14-Oct-21,2122/08,LGE,N,
356115,BIRKETTS LLP,"3,885.00",Planning Enforcement,Legal Expenses,22-Sep-21,2122/08,LGE,N,
356165,UK CONTAINER MAINTENANCE LTD,"4,283.80",Jnt Waste Contract,"Equipment, Tools & Materials",11-Nov-21,2122/08,SME,N,
355646,GALLAGHER CAR & VAN RENTALS LTD,"1,700.00",Domestic Waste,Refuse Contract,21-Oct-21,2122/08,LGE,N,
355775,GALLAGHER CAR & VAN RENTALS LTD,514.29,Domestic Waste,Refuse Contract,29-Oct-21,2122/08,LGE,N,
355833,GALLAGHER CAR & VAN RENTALS LTD,"1,100.00",Domestic Waste,Refuse Contract,01-Nov-21,2122/08,LGE,N,
356126,GALLAGHER CAR & VAN RENTALS LTD,"1,523.43",Domestic Waste,Refuse Contract,13-Nov-21,2122/08,LGE,N,
356154,CLAYDON FOOTBALL CLUB,510,Suffolk Community Restart Fund,Grants,16-Nov-21,2122/08,SME,N,
356178,CHEC PLANNING LTD,"1,633.93",Nghbrhd Plan Designations,Prof & Consultancy Fees,16-Nov-21,2122/08,SME,N,
356269,MENDLESHAM MEDICAL GROUP,"27,552.00",CIL Funded REFCUS,Grants,23-Nov-21,2122/08,SME,N,
355858,GREEN SPARK PRODUCTION LTD T/A AV UNIT,"1,939.60",Cost of Democracy,"Equipment, Tools & Materials",13-Oct-21,2122/08,SME,N,
356360,SAVILLS,"3,000.00",Assets & Development,Prof & Consultancy Fees,26-Nov-21,2122/08,SME,N,
356322,MANSION HOUSE PUBLISHING LTD,"1,062.00",RHSSF,Advertising&mkting (non-staff),24-Nov-21,2122/08,SME,Y,50%
356136,ASPECT CONTRACTS LTD,"2,140.00",Asbestos,Improvements,12-Nov-21,2122/08,LGE,N,
356058,FENLAND LEISURE PRODUCTS LTD,365,Open Spaces,"Equipment, Tools & Materials",08-Nov-21,2122/08,SME,N,
356300,FENLAND LEISURE PRODUCTS LTD,738.6,Open Spaces,"Equipment, Tools & Materials",24-Nov-21,2122/08,SME,N,
422237,RIX PETROLEUM (EAST ANGLIA) LTD,"9,263.86",Open Spaces,Plant & Vehicle Fuel,04-Nov-21,2122/08,SME,N,
355744,NORTHUMBRIAN WATER LTD,28.9,Cedars Park,Legionella Testing,27-Oct-21,2122/08,LGE,N,
355744,NORTHUMBRIAN WATER LTD,28.9,Creeting Rd Depot,Legionella Testing,27-Oct-21,2122/08,LGE,Y,50%
355744,NORTHUMBRIAN WATER LTD,34.15,Headquarters General,Legionella Testing,27-Oct-21,2122/08,LGE,N,
355744,NORTHUMBRIAN WATER LTD,28.9,Leisure Contract,Legionella Testing,27-Oct-21,2122/08,LGE,N,
355744,NORTHUMBRIAN WATER LTD,183.9,Open Spaces,Legionella Testing,27-Oct-21,2122/08,LGE,N,
355744,NORTHUMBRIAN WATER LTD,34.15,Other HRA Temp Accommodation,Legionella Testing,27-Oct-21,2122/08,LGE,N,
355744,NORTHUMBRIAN WATER LTD,68.3,Public Conveniences,Legionella Testing,27-Oct-21,2122/08,LGE,N,
355744,NORTHUMBRIAN WATER LTD,470.25,Responsive maintenance,Legionella Testing,27-Oct-21,2122/08,LGE,N,
355744,NORTHUMBRIAN WATER LTD,438.7,Sheltered Accommodation,Legionella Testing,27-Oct-21,2122/08,LGE,N,
355744,NORTHUMBRIAN WATER LTD,34.15,Temporary Accommodation,Legionella Testing,27-Oct-21,2122/08,LGE,N,
355744,NORTHUMBRIAN WATER LTD,63.05,Wingfield Barns,Legionella Testing,27-Oct-21,2122/08,LGE,N,
355862,NORTHUMBRIAN WATER LTD,"3,220.00",Sheltered Accommodation,Legionella Testing,02-Nov-21,2122/08,LGE,N,
355864,PARK AVENUE RECRUITMENT LTD,"1,804.00",Devt Management - Apps,Prof & Consultancy Fees,31-Oct-21,2122/08,SME,Y,46%
355919,JOHN FORD GROUP LTD,"7,496.78",Mand Disabled Facilities Grant,Grants,04-Nov-21,2122/08,SME,N,
356268,JOHN FORD GROUP LTD,"6,114.74",Mand Disabled Facilities Grant,Grants,22-Nov-21,2122/08,SME,N,
355851,BRITISH RED CROSS,356,Organisational Devt,Health & Safety Training,29-Oct-21,2122/08,SME,Y,50%
355611,ICENI,"2,421.12",Eves Meadow Haughley S106,Prof & Consultancy Fees,20-Oct-21,2122/08,SME,N,
355914,ICENI,"3,300.17",Needham Market Middle School,Prof & Consultancy Fees,04-Nov-21,2122/08,SME,N,
355915,ICENI,"3,300.17",Needham Market Middle School,Prof & Consultancy Fees,04-Nov-21,2122/08,SME,N,
356086,ICENI,"3,346.14",Stowmarket Middle School,Prof & Consultancy Fees,11-Nov-21,2122/08,SME,N,
355974,BELLWAY HOMES LIMITED (ESSEX DIVISION),"139,527.70",Eves Meadow Haughley S106,Prof & Consultancy Fees,05-Nov-21,2122/08,LGE,N,
355957,SOLACE IN BUSINESS,"8,400.00",Bus Imp (Corp),Agency Staff,08-Nov-21,2122/08,SME,Y,50%
422229,SHORTS PROPERTY PEOPLE,"1,775.00",Homeless Prevention Fund,Misc Supplies & Services Costs,28-Oct-21,2122/08,SME,N,
354580,HAMSON BARRON SMITH LTD,360,General/Supervision & Mgmt,Prof & Consultancy Fees,31-Jul-21,2122/08,LGE,Y,50%
355942,3 POINT PROPERTY MANAGEMENT LTD,675,Guaranteed Rent Scheme,Rent Payable,08-Nov-21,2122/08,SME,N,
355693,EDMUNDSON ELECTRICAL LTD (IPSWICH),376.75,Building Services,"Equipment, Tools & Materials",21-Oct-21,2122/08,LGE,N,
356021,DG ACCESSIBLE DESIGNS,400,Council House Adaptions,Improvements,27-Aug-21,2122/08,SME,N,
355132,WASHCO LTD,254.52,Sheltered Accommodation,Repairs,28-Sep-21,2122/08,SME,N,
355133,WASHCO LTD,269.46,Sheltered Accommodation,Repairs,28-Sep-21,2122/08,SME,N,
355259,WASHCO LTD,81,Sheltered Accommodation,"Equipment, Tools & Materials",01-Oct-21,2122/08,SME,N,
355259,WASHCO LTD,305,Sheltered Accommodation,"Equipment, Tools & Materials",01-Oct-21,2122/08,SME,N,
355259,WASHCO LTD,81,Sheltered Accommodation,"Equipment, Tools & Materials",01-Oct-21,2122/08,SME,N,
355840,WASHCO LTD,467,Sheltered Accommodation,"Equipment, Tools & Materials",01-Nov-21,2122/08,SME,N,
422239,ANGLIAN WATER BUS (NAT) LTD T/A WAVE,28.39,"11 Market Place, Stowmarket",Water Rates - Metered,15-Nov-21,2122/08,LGE,N,
422239,ANGLIAN WATER BUS (NAT) LTD T/A WAVE,632.51,Creeting Rd Depot,Water Rates - Metered,15-Nov-21,2122/08,LGE,Y,50%
422239,ANGLIAN WATER BUS (NAT) LTD T/A WAVE,31.15,General/Supervision & Mgmt,Water Rates - Metered,15-Nov-21,2122/08,LGE,N,
422239,ANGLIAN WATER BUS (NAT) LTD T/A WAVE,128.38,Headquarters General,Water Rates - Metered,15-Nov-21,2122/08,LGE,N,
422239,ANGLIAN WATER BUS (NAT) LTD T/A WAVE,131.26,Open Spaces,Water Rates - Metered,15-Nov-21,2122/08,LGE,N,
422239,ANGLIAN WATER BUS (NAT) LTD T/A WAVE,291.26,Public Conveniences,Water Rates - Metered,15-Nov-21,2122/08,LGE,N,
422239,ANGLIAN WATER BUS (NAT) LTD T/A WAVE,5.5,Recycling Centre,Water Rates - Metered,15-Nov-21,2122/08,LGE,N,
422239,ANGLIAN WATER BUS (NAT) LTD T/A WAVE,4.04,Sewage Treatment Works,Water Rates - Metered,15-Nov-21,2122/08,LGE,N,
422239,ANGLIAN WATER BUS (NAT) LTD T/A WAVE,"1,694.96",Sheltered Accommodation,Water Rates - Metered,15-Nov-21,2122/08,LGE,N,
422239,ANGLIAN WATER BUS (NAT) LTD T/A WAVE,16.42,Tacon Close Eye TDP,Water Rates - Metered,15-Nov-21,2122/08,LGE,N,
422239,ANGLIAN WATER BUS (NAT) LTD T/A WAVE,49.24,Temporary Accommodation,Water Rates - Metered,15-Nov-21,2122/08,LGE,N,
422239,ANGLIAN WATER BUS (NAT) LTD T/A WAVE,40.3,Tenancy Services,Water Rates - Metered,15-Nov-21,2122/08,LGE,N,
422239,ANGLIAN WATER BUS (NAT) LTD T/A WAVE,9.55,Wingfield Barns,Water Rates - Metered,15-Nov-21,2122/08,LGE,N,
356247,ABACUS FIRE & SECURITY LTD,469.9,Open Spaces,Plant & Vehicle - Other costs,19-Nov-21,2122/08,SME,N,
355941,PARKYNS LETTINGS BURY ST EDMUNDS,650,Guaranteed Rent Scheme,Rent Payable,08-Nov-21,2122/08,SME,N,
422246,IMSERV EUROPE LTD,122.52,Headquarters General,Electricity,17-Nov-21,2122/08,LGE,N,
422246,IMSERV EUROPE LTD,234.64,Sheltered Accommodation,Electricity,17-Nov-21,2122/08,LGE,N,
422246,IMSERV EUROPE LTD,122.52,Open Spaces,Electricity,17-Nov-21,2122/08,LGE,N,
422252,IMSERV EUROPE LTD,139,Open Spaces,Electricity,25-Nov-21,2122/08,LGE,N,
422252,IMSERV EUROPE LTD,139,Headquarters General,Electricity,25-Nov-21,2122/08,LGE,N,
422252,IMSERV EUROPE LTD,278,Sheltered Accommodation,Electricity,25-Nov-21,2122/08,LGE,N,
355745,ALBION COMPUTERS PLC,"5,049.55",Devt Management - Apps,Computer Equpt Purchases,18-Oct-21,2122/08,SME,Y,45%
355741,GREENACRE RECRUITMENT LTD,"1,110.00",Housing Standards,Agency Staff,27-Oct-21,2122/08,SME,Y,50%
355878,GREENACRE RECRUITMENT LTD,"1,110.00",Housing Standards,Agency Staff,03-Nov-21,2122/08,SME,Y,50%
356029,GREENACRE RECRUITMENT LTD,"1,110.00",Housing Standards,Agency Staff,10-Nov-21,2122/08,SME,Y,50%
356290,GREENACRE RECRUITMENT LTD,"1,192.45",Housing Standards,Agency Staff,24-Nov-21,2122/08,SME,Y,50%
356031,LAND USE CONSULTANTS LTD,"3,083.20",Devt Management - Apps,Environmental  Consultancy,30-Sep-21,2122/08,SME,N,
356278,LAND USE CONSULTANTS LTD,"1,500.00",Nghbrhd Plan Designations,Prof & Consultancy Fees,23-Nov-21,2122/08,SME,N,
356254,WATERLOGIC,559.71,Creeting Rd Depot,Contracted Services,01-Sep-21,2122/08,LGE,Y,50%
356266,BRANDON WETROOMS,"4,980.74",Mand Disabled Facilities Grant,Grants,23-Nov-21,2122/08,SME,N,
356096,GREGG BROWN PHOTOGRAPHY,285,Strategic Assets,Prof & Consultancy Fees,11-Nov-21,2122/08,ST,N,
355774,MODECE ARCHITECTS LTD,"2,398.71",Shop Front & Access Imp Grants,Repairs,29-Oct-21,2122/08,SME,N,
356221,LIMELEASE LTD,395,Guaranteed Rent Scheme,Rent Payable,22-Nov-21,2122/08,SME,N,
355830,GIPPING CONSTRUCTION LTD,"13,811.55",Regen Fund - HQ Sites,Prof & Consultancy Fees,27-Oct-21,2122/08,SME,N,
355830,GIPPING CONSTRUCTION LTD,"180,817.98",Needham Market Middle School,Prof & Consultancy Fees,27-Oct-21,2122/08,SME,N,
356223,PRIVATE LANDLORD,786.5,Guaranteed Rent Scheme,Rent Payable,22-Nov-21,2122/08,ST,N,
355939,AFFINITY HEALTH AT WORK LTD,"7,000.00",Organisational Devt,Corporate Training,01-Nov-21,2122/08,SME,Y,50%
355311,MRS SHELLEY SPALL T/A CLEANING COVERED,896,Business Cont/Emergency Plan,General Cleaning,05-Oct-21,2122/08,SME,N,
355958,MRS SHELLEY SPALL T/A CLEANING COVERED,896,Business Cont/Emergency Plan,General Cleaning,08-Nov-21,2122/08,SME,N,
355959,MRS SHELLEY SPALL T/A CLEANING COVERED,896,Business Cont/Emergency Plan,General Cleaning,08-Nov-21,2122/08,SME,N,
355781,DAVID KNIGHTS T/A DAVID BROWN,450,Assets & Development,Prof & Consultancy Fees,29-Oct-21,2122/08,ST,N,
355231,CORENERGY LIMITED,"284,480.00",Public Sector Decarbonisation,Contracted Services,30-Sep-21,2122/08,SME,N,
355288,CORENERGY LIMITED,"10,474.80",Public Sector Decarbonisation,Contracted Services,30-Sep-21,2122/08,SME,N,
355909,CORENERGY LIMITED,"7,446.00",Public Sector Decarbonisation,Contracted Services,31-Oct-21,2122/08,SME,N,
355910,CORENERGY LIMITED,"55,508.00",Public Sector Decarbonisation,Contracted Services,05-Nov-21,2122/08,SME,N,
355975,PRIVATE LANDLORD,786.5,Guaranteed Rent Scheme,Rent Payable,09-Nov-21,2122/08,ST,N,
355936,COUNTRYSTYLE RECYCLING LTD,422,Trade Waste,Trade Waste Disposal,31-Oct-21,2122/08,SME,Y,50%
355937,COUNTRYSTYLE RECYCLING LTD,270.59,Bring Sites,Contracted Services,31-Oct-21,2122/08,SME,N,
356222,TEMPLE LETTINGS,650,Guaranteed Rent Scheme,Rent Payable,22-Nov-21,2122/08,SME,N,
355795,DGL QUALITY MANAGEMENT LTD,870.76,Needham Market Middle School,Prof & Consultancy Fees,31-Oct-21,2122/08,SME,N,
355935,PRIMADONNA FESTIVAL CIC,"1,000.00",BRRP - Successful & Skilled,Prof & Consultancy Fees,02-Nov-21,2122/08,SME,N,
356015,RSK LAND & DEVELOPMENT ENGINEERING LTD,375,Strategic Assets,Prof & Consultancy Fees,27-Oct-21,2122/08,LGE,N,
356016,RSK LAND & DEVELOPMENT ENGINEERING LTD,"1,160.00",Strategic Assets,Prof & Consultancy Fees,28-Oct-21,2122/08,LGE,N,
356153,PCC OF STOWMARKET,"4,458.57",Community Fund Projects-Grants,Grants,16-Nov-21,2122/08,SME,N,
355966,ARAN INSULATION LTD,"6,351.07",Insulation Imps,Improvements,08-Nov-21,2122/08,SME,N,
356171,ARAN INSULATION LTD,"2,886.69",Renovation/Home Repair Grants,Grants,17-Nov-21,2122/08,SME,N,
356265,RENTS PROPERTY MANAGEMENT SERVICES,"1,064.00",Rent Deposit Scheme,Misc Premises Costs,22-Nov-21,2122/08,SME,N,
355798,IAN BOOTH CONSULTANT ENGINEER LTD,"2,100.00",Strategic Assets,Prof & Consultancy Fees,31-Oct-21,2122/08,SME,N,
355791,MARCHDELL LTD,715,Guaranteed Rent Scheme,Rent Payable,01-Nov-21,2122/08,SME,N,
355866,IPSERV LTD,"1,042.85",Central Printing,Commercial Printing,01-Nov-21,2122/08,SME,N,
355866,IPSERV LTD,797.81,Communications,Commercial Printing,01-Nov-21,2122/08,SME,Y,53%
355866,IPSERV LTD,6,Wellbeing CCG Funding,"Equipment, Tools & Materials",01-Nov-21,2122/08,SME,N,
355597,SEH FRENCH LTD,"65,848.00",Needham Lake Vis Centre (CAP),Major Contracts,19-Oct-21,2122/08,SME,N,
356314,SEH FRENCH LTD,"99,016.00",Needham Lake Vis Centre (CAP),Major Contracts,25-Nov-21,2122/08,SME,N,
356224,PRIVATE LANDLORD,669,Guaranteed Rent Scheme,Rent Payable,22-Nov-21,2122/08,ST,N,
356085,JACKSON LIFT SERVICES LTD,624.99,Sheltered Accommodation,Plant Maintenance,04-Nov-21,2122/08,LGE,N,
355797,KATE ATKIN,800,SCMP & Training - Recharge Wks,Misc Supplies & Services Costs,01-Nov-21,2122/08,ST,Y,50%
355790,PRIVATE LANDLORD,650,Guaranteed Rent Scheme,Rent Payable,01-Nov-21,2122/08,ST,N,
356146,GREENTECH LTD,"4,552.36",Devt Management - Apps,Biodiversity Task Force,03-Nov-21,2122/08,SME,N,
356346,J9 LTD T/A BARRIERS DIRECT,481.56,Creeting Rd Depot,Property Enhancements & Imps,25-Nov-21,2122/08,SME,Y,50%
355943,PRIVATE LANDLORD,495,Guaranteed Rent Scheme,Rent Payable,08-Nov-21,2122/08,SME,N,
355863,UK LOCKSMITHS ASSOCIATION LTD,"9,966.71",Building Services,Training,26-Oct-21,2122/08,SME,Y,50%
355952,UK LOCKSMITHS ASSOCIATION LTD,766.67,Building Services,Training,08-Nov-21,2122/08,SME,Y,50%
355882,SHJ HOMES LTD,500,Guaranteed Rent Scheme,Rent Payable,04-Nov-21,2122/08,SME,N,
356184,FOOLS PARADISE LTD,680,BRRP-MarketTownVision&Invest,Advertising&mkting (non-staff),09-Oct-21,2122/08,SME,N,
356189,A WATERFIELD & SONS LTD,"7,440.00",Mand Disabled Facilities Grant,Grants,17-Nov-21,2122/08,SME,N,
356225,GHYLL HSE PUBLISHING T/A POLSTEAD PRESS,260,BRRP - Successful & Skilled,Prof & Consultancy Fees,01-Oct-21,2122/08,SME,N,
356234,GES WATER LTD,485,BRRP-InnovationClusterStowmkt,Annual Bldg Maint Contracts,10-Nov-21,2122/08,SME,N,
355756,PAPERWORK (UK) LTD,-188.4,C Parks General,Ticketing,25-Oct-21,2122/08,SME,N,
356098,WORKWEAR (EAST ANGLIA) LTD,-59.49,Building Services,Protective clothing,09-Nov-21,2122/08,SME,Y,50%
422234,WORKWEAR (EAST ANGLIA) LTD,-15.2,Open Spaces,Protective clothing,20-Jan-21,2122/08,SME,N,
886,TOTAL GAS & POWER LTD,-36.22,Pure Gym & Adjacent Building,Gas,26-Nov-21,2122/08,LGE,N,
887,TOTAL GAS & POWER LTD,38.03,Current Assets,LLOYDS GENERAL PAYMENTS,26-Nov-21,2122/08,LGE,N,
356036,HAMSON BARRON SMITH LTD,-360,General/Supervision & Mgmt,Prof & Consultancy Fees,10-Nov-21,2122/08,LGE,Y,50%
356662,ACADEMY BUILDING CONTRACTS LTD,"4,985.38",Building Services,Repairs,09-Dec-21,2122/09,SME,N,
356663,ACADEMY BUILDING CONTRACTS LTD,"1,742.06",Building Services,Repairs,09-Dec-21,2122/09,SME,N,
356978,AGROCO TRAILERS,264.5,Open Spaces,Plant & Vehicle - Other costs,13-Dec-21,2122/09,SME,N,
356980,AGROCO TRAILERS,336.5,Open Spaces,Plant & Vehicle - Other costs,14-Dec-21,2122/09,SME,N,
356981,AGROCO TRAILERS,565,Open Spaces,Plant & Vehicle - Other costs,15-Dec-21,2122/09,SME,N,
356983,AGROCO TRAILERS,379.5,Open Spaces,Plant & Vehicle - Other costs,17-Dec-21,2122/09,SME,N,
356984,AGROCO TRAILERS,353,Open Spaces,Plant & Vehicle - Other costs,17-Dec-21,2122/09,SME,N,
356493,ANGLIAN WATER,509.01,Sheltered Accommodation,Water Rates - Metered,25-Nov-21,2122/09,LGE,N,
356658,ANGLIAN WATER,"1,780.78",Sheltered Accommodation,Water Rates - Metered,30-Nov-21,2122/09,LGE,N,
356990,ANGLIAN WATER,252.39,Water Sampling,Sampling & Analysis,20-Dec-21,2122/09,LGE,N,
356423,APSE,"2,460.00",Food & Safety (General),Agency Staff,23-Nov-21,2122/09,LGE,Y,50%
356423,APSE,"2,460.00",Animal Welfare Licensing,Agency Staff,23-Nov-21,2122/09,LGE,Y,50%
357006,APSE,"1,640.00",Food & Safety (General),Agency Staff,21-Dec-21,2122/09,LGE,Y,50%
357006,APSE,"1,640.00",Animal Welfare Licensing,Agency Staff,21-Dec-21,2122/09,LGE,Y,50%
356452,ARLINGCLOSE LTD,484.02,Treasury Management,Contracted Services,30-Nov-21,2122/09,SME,N,
356843,ARLINGCLOSE LTD,"11,625.00",Treasury Management,Contracted Services,16-Dec-21,2122/09,SME,N,
356774,BEN BURGESS GARDEN EQUIPMENT,"2,400.00",Open Spaces,"Equipment, Tools & Materials",07-Dec-21,2122/09,SME,N,
356394,BLUE FLAME (COLCHESTER) LTD,"26,081.79",Planned Maint - Heating,Property Servicing,29-Nov-21,2122/09,SME,N,
356518,BLUE FLAME (COLCHESTER) LTD,"24,898.00",Central Heating,Improvements,30-Sep-21,2122/09,SME,N,
356924,BLUE FLAME (COLCHESTER) LTD,"26,081.79",Planned Maint - Heating,Property Servicing,22-Nov-21,2122/09,SME,N,
356925,BLUE FLAME (COLCHESTER) LTD,"26,081.79",Planned Maint - Heating,Property Servicing,27-Oct-21,2122/09,SME,N,
422285,BLUE FLAME (COLCHESTER) LTD,223.38,Disabled Facilities (Revenue),Repairs,01-Dec-21,2122/09,SME,N,
422285,BLUE FLAME (COLCHESTER) LTD,344.92,Voids Maintenance,Repairs,01-Dec-21,2122/09,SME,N,
422285,BLUE FLAME (COLCHESTER) LTD,"6,908.17",Planned Maint - Heating,Repairs,01-Dec-21,2122/09,SME,N,
422285,BLUE FLAME (COLCHESTER) LTD,"52,843.00",Sheltered Units-Gen.Imp,Improvements,01-Dec-21,2122/09,SME,N,
422285,BLUE FLAME (COLCHESTER) LTD,"3,943.85",PV Panels,Contracted Services,01-Dec-21,2122/09,SME,N,
422290,BLUE FLAME (COLCHESTER) LTD,314.51,Voids Maintenance,Repairs,08-Dec-21,2122/09,SME,N,
422290,BLUE FLAME (COLCHESTER) LTD,"4,167.37",Planned Maint - Heating,Property Servicing,08-Dec-21,2122/09,SME,N,
422290,BLUE FLAME (COLCHESTER) LTD,"24,296.00",Sheltered Units-Gen.Imp,Improvements,08-Dec-21,2122/09,SME,N,
422290,BLUE FLAME (COLCHESTER) LTD,"6,786.41",PV Panels,Contracted Services,08-Dec-21,2122/09,SME,N,
422294,BLUE FLAME (COLCHESTER) LTD,973.16,Voids Maintenance,Repairs,15-Dec-21,2122/09,SME,N,
422294,BLUE FLAME (COLCHESTER) LTD,"9,685.66",Planned Maint - Heating,Property Servicing,15-Dec-21,2122/09,SME,N,
422294,BLUE FLAME (COLCHESTER) LTD,"5,792.60",PV Panels,Contracted Services,15-Dec-21,2122/09,SME,N,
422299,BLUE FLAME (COLCHESTER) LTD,124.46,Voids Maintenance,Repairs,22-Dec-21,2122/09,SME,N,
422299,BLUE FLAME (COLCHESTER) LTD,"10,767.47",Planned Maint - Heating,Property Servicing,22-Dec-21,2122/09,SME,N,
422299,BLUE FLAME (COLCHESTER) LTD,295.34,Smoke Alarms (Bbgh Standard),Improvements,22-Dec-21,2122/09,SME,N,
422299,BLUE FLAME (COLCHESTER) LTD,"3,641.90",PV Panels,Contracted Services,22-Dec-21,2122/09,SME,N,
356683,BOWER FULLER,478.33,Creeting Rd Depot,Property Enhancements & Imps,30-Nov-21,2122/09,SME,Y,50%
356684,BOWER FULLER,"1,435.83",Creeting Rd Depot,Property Enhancements & Imps,30-Nov-21,2122/09,SME,Y,50%
356689,BOWER FULLER,"3,757.32",Cedars Park,Repairs,06-Dec-21,2122/09,SME,N,
356643,BUTTON & TURNER LTD,351.18,Open Spaces,Plant & Vehicle - Other costs,05-Nov-21,2122/09,SME,N,
356649,BUTTON & TURNER LTD,318.19,Open Spaces,Plant & Vehicle - Other costs,22-Nov-21,2122/09,SME,N,
356650,BUTTON & TURNER LTD,644.96,Open Spaces,Plant & Vehicle - Other costs,11-Nov-21,2122/09,SME,N,
356653,BUTTON & TURNER LTD,285.71,Street & Major Road Cleansing,Plant & Vehicle - Other costs,30-Nov-21,2122/09,SME,N,
356655,BUTTON & TURNER LTD,305.12,Open Spaces,Plant & Vehicle - Other costs,29-Nov-21,2122/09,SME,N,
356656,BUTTON & TURNER LTD,712.42,Open Spaces,Plant & Vehicle - Other costs,29-Nov-21,2122/09,SME,N,
356920,AQUASAMPLERS,"1,004.00",Water Sampling,Sampling & Analysis,30-Nov-21,2122/09,SME,N,
356836,CEDARS HOTEL LTD,600,Homelessness Private Sector,B&B Costs,13-May-21,2122/09,SME,N,
356717,CHIPSIDE LTD,769.75,C Parks General,Contracted Services,30-Nov-21,2122/09,SME,N,
356244,D W ADAMS LTD,"4,195.00",Building Services,Repairs,19-Nov-21,2122/09,SME,N,
356255,D W ADAMS LTD,952.51,Council House Adaptions,Improvements,19-Nov-21,2122/09,SME,N,
356352,D W ADAMS LTD,"1,001.00",Building Services,Repairs,26-Nov-21,2122/09,SME,N,
356374,D W ADAMS LTD,"4,155.00",Council House Adaptions,Improvements,27-Nov-21,2122/09,SME,N,
356419,D W ADAMS LTD,561,Building Services,Repairs,30-Nov-21,2122/09,SME,N,
356886,D W ADAMS LTD,"5,305.00",Council House Adaptions,Improvements,17-Dec-21,2122/09,SME,N,
356889,D W ADAMS LTD,789,Building Services,Repairs,17-Dec-21,2122/09,SME,N,
356455,EAST ANGLIA CLEANING SERVICES LTD,"1,374.49",Jnt Waste Contract,General Cleaning,30-Nov-21,2122/09,SME,Y,50%
356456,EAST ANGLIA CLEANING SERVICES LTD,451.47,Open Spaces,General Cleaning,30-Nov-21,2122/09,SME,N,
356245,EAST OF ENGLAND LGA,975,Organisational Devt,Contracted Services,19-Nov-21,2122/09,SME,Y,50%
356386,ENGLISH SECURITY,450.8,Sheltered Accommodation,Emergency Lighting,18-Nov-21,2122/09,SME,N,
356634,ENGLISH SECURITY,427.4,Sheltered Accommodation,Fire Prevention,02-Dec-21,2122/09,SME,N,
356636,ENGLISH SECURITY,390.96,Tenancy Services,Repairs,01-Dec-21,2122/09,SME,N,
356776,FELGAINS CARE CENTRE,"2,024.00",Mand Disabled Facilities Grant,Grants,14-Dec-21,2122/09,SME,N,
356395,FELLBRIDGE BUILDING SERVICES,"2,625.90",Building Services,Repairs,29-Nov-21,2122/09,SME,N,
356513,FELLBRIDGE BUILDING SERVICES,"20,159.73",Council House Adaptions,Improvements,29-Nov-21,2122/09,SME,N,
356514,FELLBRIDGE BUILDING SERVICES,"9,350.82",Building Services,Repairs,29-Nov-21,2122/09,SME,N,
356705,FELLBRIDGE BUILDING SERVICES,"14,832.02",Building Services,Repairs,09-Dec-21,2122/09,SME,N,
356749,FELLBRIDGE BUILDING SERVICES,"5,672.56",Building Services,Repairs,13-Dec-21,2122/09,SME,N,
356750,FELLBRIDGE BUILDING SERVICES,"12,556.60",Building Services,Repairs,13-Dec-21,2122/09,SME,N,
356752,FELLBRIDGE BUILDING SERVICES,"8,301.72",Building Services,Repairs,13-Dec-21,2122/09,SME,N,
356754,FELLBRIDGE BUILDING SERVICES,954.81,Building Services,Repairs,13-Dec-21,2122/09,SME,N,
356854,FELLBRIDGE BUILDING SERVICES,285.84,Building Services,Repairs,16-Dec-21,2122/09,SME,N,
356855,FELLBRIDGE BUILDING SERVICES,"1,370.56",Building Services,Repairs,16-Dec-21,2122/09,SME,N,
356856,FELLBRIDGE BUILDING SERVICES,"7,958.48",Building Services,Repairs,16-Dec-21,2122/09,SME,N,
356462,FORE-MOST GARAGE DOORS LTD,266,Tenancy Services,Repairs,30-Nov-21,2122/09,SME,N,
356462,FORE-MOST GARAGE DOORS LTD,212.8,Tenancy Services,Repairs,30-Nov-21,2122/09,SME,N,
356462,FORE-MOST GARAGE DOORS LTD,"2,088.50",Building Services,Repairs,30-Nov-21,2122/09,SME,N,
356928,GB ADAPTIONS LTD,"1,826.40",Mand Disabled Facilities Grant,Grants,20-Dec-21,2122/09,SME,N,
356608,G4S CASH SOLUTIONS LTD,960.96,Financial Servs,Contracted Services,30-Nov-21,2122/09,LGE,N,
356519,GHB ROOFING,"1,070.00",Building Services,Repairs,30-Nov-21,2122/09,SME,N,
356541,GHB ROOFING,"4,846.00",Building Services,Repairs,30-Nov-21,2122/09,SME,N,
356902,GHB ROOFING,"4,135.00",Building Services,Repairs,17-Dec-21,2122/09,SME,N,
356553,GLASDON UK LTD,"14,262.75",RHSSF,Bins,03-Dec-21,2122/09,LGE,N,
356257,INDESPENSION LTD,"5,990.00",Vehicle and Plant Renewals,Plant & Vehicle - Purchase,22-Nov-21,2122/09,SME,N,
356841,JMP SERVICES LTD,580,Street & Major Road Cleansing,Contracted Services,15-Dec-21,2122/09,SME,N,
356482,KEYWAYS THE LOCKSMITHS LTD,320,Sheltered Accommodation,Repairs,01-Dec-21,2122/09,SME,N,
356483,KEYWAYS THE LOCKSMITHS LTD,300,Sheltered Accommodation,Repairs,01-Dec-21,2122/09,SME,N,
356589,KEYWAYS THE LOCKSMITHS LTD,450,Tenancy Services,Repairs,07-Dec-21,2122/09,SME,N,
356913,LABC,600,Bldg Regs Chargeable Serv,Training,25-Oct-21,2122/09,SME,Y,45%
356219,LJ GAMMER (STOWMARKET) LTD,475,Building Services,Plant & Vehicle - Other costs,18-Nov-21,2122/09,SME,N,
356384,M & H CIVIL ENGINEERING LTD,701.5,Building Services,Repairs,26-Nov-21,2122/09,SME,N,
356385,M & H CIVIL ENGINEERING LTD,583.7,Building Services,Repairs,26-Nov-21,2122/09,SME,N,
356494,M & H CIVIL ENGINEERING LTD,635.1,Building Services,Repairs,01-Dec-21,2122/09,SME,N,
356637,M & H CIVIL ENGINEERING LTD,515,Building Services,Repairs,06-Dec-21,2122/09,SME,N,
356767,M & H CIVIL ENGINEERING LTD,467.5,Headquarters General,Repairs,13-Dec-21,2122/09,SME,N,
356434,MALJON TIMBER PRESERVATION LTD,509,Building Services,Repairs,25-Nov-21,2122/09,SME,N,
356586,MATERIAL CHANGE COMPOSTING LTD,437.55,Open Spaces,Waste Disposal,30-Nov-21,2122/09,LGE,N,
356453,MB TREES (EAST ANGLIA) LTD,420,Public Tree Programme,Tree felling/maintenance,30-Nov-21,2122/09,SME,N,
356454,MB TREES (EAST ANGLIA) LTD,480,Public Tree Programme,Tree felling/maintenance,30-Nov-21,2122/09,SME,N,
356593,MB TREES (EAST ANGLIA) LTD,540,Tenancy Services,Tree felling/maintenance,07-Dec-21,2122/09,SME,N,
356595,MB TREES (EAST ANGLIA) LTD,"2,480.00",Public Tree Programme,Tree felling/maintenance,07-Dec-21,2122/09,SME,N,
357035,MB TREES (EAST ANGLIA) LTD,380,Pure Gym & Adjacent Building,Grounds & Site Maintenance,23-Dec-21,2122/09,SME,N,
357036,MB TREES (EAST ANGLIA) LTD,"1,485.00",Tenancy Services,Tree felling/maintenance,23-Dec-21,2122/09,SME,N,
356246,MERCURY BUILDING SERVICES LTD,"20,932.00",Sheltered Units-Gen.Imp,Improvements,19-Nov-21,2122/09,SME,N,
356367,MERCURY BUILDING SERVICES LTD,632,Sheltered Accommodation,Repairs,26-Nov-21,2122/09,SME,N,
356448,MERCURY BUILDING SERVICES LTD,"11,754.00",Sheltered Units-Gen.Imp,Improvements,26-Nov-21,2122/09,SME,N,
356733,MERCURY BUILDING SERVICES LTD,"1,875.00",Other HRA Temp Accommodation,Legionella Testing,09-Dec-21,2122/09,SME,N,
355951,MID SUFFOLK FENCING LTD,353.28,Building Services,Repairs,08-Nov-21,2122/09,SME,N,
356262,MID SUFFOLK FENCING LTD,"4,262.50",Building Services,Repairs,22-Nov-21,2122/09,SME,N,
356375,MID SUFFOLK FENCING LTD,"3,252.46",Building Services,Repairs,16-Nov-21,2122/09,SME,N,
422272,NEEDHAM MARKET TOWN COUNCIL,"2,548.26",Street & Major Road Cleansing,Contributions to other Bodies,01-Dec-21,2122/09,SME,N,
356066,NORFOLK COUNTY COUNCIL,"4,734.72",Strategic Housing,Subscriptions,29-Oct-21,2122/09,LGE,N,
356284,PRO-FLAT SPECIALIST SERVICES LTD,"3,006.00",Building Services,Repairs,23-Nov-21,2122/09,SME,N,
356574,PRO-FLAT SPECIALIST SERVICES LTD,"1,977.00",Major Imps,Improvements,06-Dec-21,2122/09,SME,N,
356904,PRO-FLAT SPECIALIST SERVICES LTD,"2,262.00",Roofing,Improvements,17-Dec-21,2122/09,SME,N,
356127,REID PLUMBING & HEATING CONTRACTORS LTD,"9,929.75",Central Heating,Major Contracts,13-Nov-21,2122/09,SME,N,
356157,REID PLUMBING & HEATING CONTRACTORS LTD,"12,762.15",Central Heating,Major Contracts,16-Nov-21,2122/09,SME,N,
356196,REID PLUMBING & HEATING CONTRACTORS LTD,"9,002.51",Central Heating,Major Contracts,17-Nov-21,2122/09,SME,N,
356270,REID PLUMBING & HEATING CONTRACTORS LTD,"3,987.25",Central Heating,Major Contracts,23-Nov-21,2122/09,SME,N,
356633,REID PLUMBING & HEATING CONTRACTORS LTD,"4,935.27",Central Heating,Major Contracts,08-Dec-21,2122/09,SME,N,
356660,REID PLUMBING & HEATING CONTRACTORS LTD,"8,983.21",Central Heating,Major Contracts,08-Dec-21,2122/09,SME,N,
356782,REID PLUMBING & HEATING CONTRACTORS LTD,"4,455.53",Central Heating,Major Contracts,14-Dec-21,2122/09,SME,N,
356458,SACKERS LTD,"1,550.14",Building Services,Waste Disposal,30-Nov-21,2122/09,SME,Y,50%
356468,SACKERS LTD,555.95,Building Services,Waste Disposal,30-Nov-21,2122/09,SME,Y,50%
356271,SANDY LANE NURSERY,"5,400.00",Transformation Fund,Misc Supplies & Services Costs,22-Nov-21,2122/09,SME,Y,50%
356563,SHELTON DEVELOPMENT SEVICES LTD,"1,750.00",Assets & Development,Prof & Consultancy Fees,03-Dec-21,2122/09,SME,Y,50%
356348,SEAGER HOME SOLUTIONS,"3,864.09",Major Imps,Improvements,09-Nov-21,2122/09,SME,N,
356349,SEAGER HOME SOLUTIONS,"6,569.93",Major Imps,Improvements,09-Nov-21,2122/09,SME,N,
356830,SEAGER HOME SOLUTIONS,"3,489.00",Mand Disabled Facilities Grant,Grants,15-Dec-21,2122/09,SME,N,
356824,SOLUTIONS ON SECURITY SERVICES,330,Creeting Rd Depot,Security Systems,14-Dec-21,2122/09,SME,Y,50%
356833,THOMSON REUTERS,"2,499.96",Devt Management - Apps,Subscriptions,01-Nov-21,2122/09,LGE,Y,50%
356834,THOMSON REUTERS,"2,199.96",Devt Management - Apps,Books & Periodicals,01-Dec-21,2122/09,LGE,Y,50%
356546,TANKCHANGE LTD,345,Central Heating,Improvements,06-Dec-21,2122/09,SME,N,
356547,TANKCHANGE LTD,345,Central Heating,Improvements,01-Dec-21,2122/09,SME,N,
356548,TANKCHANGE LTD,345,Central Heating,Improvements,01-Dec-21,2122/09,SME,N,
356356,THERMATECH,600,Tenancy Services,Fire Prevention,22-Nov-21,2122/09,SME,N,
356356,THERMATECH,475,Sheltered Accommodation,Fire Prevention,22-Nov-21,2122/09,SME,N,
356361,THERMATECH,950,Sheltered Accommodation,Fire Prevention,26-Nov-21,2122/09,SME,N,
356396,THOMPSON COOPER LTD,"1,003.75",Street & Major Road Cleansing,"Equipment, Tools & Materials",29-Nov-21,2122/09,SME,N,
356839,THOMPSON COOPER LTD,"1,003.75",Street & Major Road Cleansing,"Equipment, Tools & Materials",15-Dec-21,2122/09,SME,N,
356017,TRISCAN SYSTEMS LTD,996.5,Open Spaces,Plant & Vehicle Fuel,09-Nov-21,2122/09,SME,N,
356632,TRUCKEAST LTD,"1,081.44",Open Spaces,Plant & Vehicle - Other costs,08-Dec-21,2122/09,LGE,N,
356786,TRUCKEAST LTD,260.3,Street & Major Road Cleansing,Plant & Vehicle - Other costs,14-Dec-21,2122/09,LGE,N,
356668,WINDIMAN LTD,735,Building Services,Repairs,07-Dec-21,2122/09,SME,N,
356669,WINDIMAN LTD,"1,800.00",Building Services,Repairs,07-Dec-21,2122/09,SME,N,
356670,WINDIMAN LTD,735,Building Services,Repairs,07-Dec-21,2122/09,SME,N,
356873,WINDIMAN LTD,735,Building Services,Repairs,25-Nov-21,2122/09,SME,N,
356877,WINDIMAN LTD,735,Building Services,Repairs,16-Dec-21,2122/09,SME,N,
356881,WINDIMAN LTD,735,Building Services,Repairs,16-Dec-21,2122/09,SME,N,
356882,WINDIMAN LTD,735,Building Services,Repairs,17-Dec-21,2122/09,SME,N,
356883,WINDIMAN LTD,735,Building Services,Repairs,16-Dec-21,2122/09,SME,N,
356428,WORKWEAR (EAST ANGLIA) LTD,323.24,Building Services,Protective clothing,17-Nov-21,2122/09,SME,Y,50%
356432,WORKWEAR (EAST ANGLIA) LTD,362.71,Building Services,Protective clothing,17-Nov-21,2122/09,SME,Y,50%
356665,WORKWEAR (EAST ANGLIA) LTD,133.05,Open Spaces,Protective clothing,08-Dec-21,2122/09,SME,N,
356665,WORKWEAR (EAST ANGLIA) LTD,133.05,Street & Major Road Cleansing,Protective clothing,08-Dec-21,2122/09,SME,N,
356712,WORKWEAR (EAST ANGLIA) LTD,577.98,Open Spaces,Protective clothing,02-Dec-21,2122/09,SME,N,
356849,WORKWEAR (EAST ANGLIA) LTD,"1,180.42",Building Services,Protective clothing,10-Dec-21,2122/09,SME,Y,50%
356850,WORKWEAR (EAST ANGLIA) LTD,"1,379.37",Building Services,Protective clothing,10-Dec-21,2122/09,SME,Y,50%
356287,ARCHANT COMMUNITY MEDIA LTD,"1,155.66",Devt Management - Apps,Advertising&mkting (non-staff),20-Nov-21,2122/09,LGE,N,
356440,ARCHANT COMMUNITY MEDIA LTD,787.95,Devt Management - Apps,Advertising&mkting (non-staff),27-Nov-21,2122/09,LGE,N,
356568,ARCHANT COMMUNITY MEDIA LTD,348.04,GF Misc Capital Receipts,Advertising&mkting (non-staff),02-Dec-21,2122/09,LGE,N,
356578,ARCHANT COMMUNITY MEDIA LTD,604.1,Devt Management - Apps,Advertising&mkting (non-staff),04-Dec-21,2122/09,LGE,N,
356598,ARCHANT COMMUNITY MEDIA LTD,696.08,Gambling & Small Lotteries,Advertising&mkting (non-staff),04-Dec-21,2122/09,LGE,N,
356801,ARCHANT COMMUNITY MEDIA LTD,866.75,Devt Management - Apps,Advertising&mkting (non-staff),11-Dec-21,2122/09,LGE,N,
356884,HAYMARKET MEDIA GROUP LTD,"1,625.00",Planning Performance Agreement,"Equipment, Tools & Materials",17-Dec-21,2122/09,SME,Y,50%
356885,HAYMARKET MEDIA GROUP LTD,"3,100.00",Planning Performance Agreement,"Equipment, Tools & Materials",17-Dec-21,2122/09,SME,Y,50%
356530,MITIE PROPERTY SERVICES (UK) LTD,"21,612.52",Planned Maint - Ext Painting,Major Contracts,02-Dec-21,2122/09,SME,N,
356393,SERCO LTD,"1,714.86",Open Spaces,Plant & Vehicle Fuel,17-Nov-21,2122/09,LGE,Y,50%
356777,SERCO LTD,400,Domestic Waste,Refuse Contract,01-Dec-21,2122/09,LGE,N,
356789,SERCO LTD,"22,179.86",Trade Waste,Refuse Contract,13-Dec-21,2122/09,LGE,Y,60%
356789,SERCO LTD,"77,664.58",Garden Waste,Refuse Contract,13-Dec-21,2122/09,LGE,Y,48%
356789,SERCO LTD,"292,516.56",Domestic Waste,Refuse Contract,13-Dec-21,2122/09,LGE,Y,48%
356790,SERCO LTD,"4,377.00",Domestic Waste,Refuse Contract,13-Dec-21,2122/09,LGE,Y,50%
356791,SERCO LTD,"8,075.33",Jnt Waste Contract,Plant & Vehicle Fuel,13-Dec-21,2122/09,LGE,Y,50%
356816,TRAVIS PERKINS TRADING CO LTD,"46,529.04",Building Services,"Equipment, Tools & Materials",01-Dec-21,2122/09,LGE,Y,51%
422295,EDF ENERGY,115.23,"11 Market Place, Stowmarket",Electricity,14-Dec-21,2122/09,LGE,N,
422295,EDF ENERGY,311.94,C Parks General,Electricity,14-Dec-21,2122/09,LGE,N,
422295,EDF ENERGY,539.83,Creeting Rd Depot,Electricity,14-Dec-21,2122/09,LGE,Y,50%
422295,EDF ENERGY,276.79,Headquarters General,Electricity,14-Dec-21,2122/09,LGE,N,
422295,EDF ENERGY,"17,279.56",Leisure Contract,Electricity,14-Dec-21,2122/09,LGE,N,
422295,EDF ENERGY,30.67,Needham Market Middle School,Electricity,14-Dec-21,2122/09,LGE,N,
422295,EDF ENERGY,270.05,Open Spaces,Electricity,14-Dec-21,2122/09,LGE,N,
422295,EDF ENERGY,563.91,Other HRA Temp Accommodation,Electricity,14-Dec-21,2122/09,LGE,N,
422295,EDF ENERGY,41.6,Public Conveniences,Electricity,14-Dec-21,2122/09,LGE,N,
422295,EDF ENERGY,318.98,Pure Gym & Adjacent Building,Electricity,14-Dec-21,2122/09,LGE,N,
422295,EDF ENERGY,10.13,Recycling Centre,Electricity,14-Dec-21,2122/09,LGE,N,
422295,EDF ENERGY,390.57,Sewage Treatment Works,Electricity,14-Dec-21,2122/09,LGE,N,
422295,EDF ENERGY,"12,587.34",Sheltered Accommodation,Electricity,14-Dec-21,2122/09,LGE,N,
422295,EDF ENERGY,376.45,Temporary Accommodation,Electricity,14-Dec-21,2122/09,LGE,N,
422295,EDF ENERGY,"1,458.36",Tenancy Services,Electricity,14-Dec-21,2122/09,LGE,N,
422295,EDF ENERGY,"1,672.41",Wingfield Barns,Electricity,14-Dec-21,2122/09,LGE,N,
356516,J BREHENY CONTRACTORS LTD,"46,392.28",Strategic Assets,Major Contracts,02-Dec-21,2122/09,LGE,N,
422293,GPC BARCLAYS,"7,087.87",Current Assets,Barclaycard Control,14-Dec-21,2122/09,LGE,Y,26%
422286,ALLSTAR BUSINESS SOLUTIONS LTD,124.79,Housing Options,Plant & Vehicle Fuel,30-Nov-21,2122/09,SME,Y,50%
422286,ALLSTAR BUSINESS SOLUTIONS LTD,"8,952.96",Building Services,Plant & Vehicle Fuel,30-Nov-21,2122/09,SME,Y,50%
356515,STANNAH STAIRLIFTS LTD,"5,980.00",Council House Adaptions,Improvements,26-Nov-21,2122/09,LGE,N,
422283,COMPUTERSHARE ,"1,276.00",Current Assets,ChildCare Vouchers-Control,29-Nov-21,2122/09,LGE,N,
357019,1ST MENDLESHAM SCOUT GROUP,"1,445.00",Suffolk Community Restart Fund,Grants,22-Dec-21,2122/09,SME,N,
356735,ASHBOCKING PARISH COUNCIL,"1,000.00",Grants & Contrbns,Contributions & Donations,10-Dec-21,2122/09,SME,N,
422254,BACTON PARISH COUNCIL,347.49,Street & Major Road Cleansing,Contributions to other Bodies,01-Dec-21,2122/09,SME,N,
356734,BARHAM PARISH COUNCIL,"2,000.00",Grants & Contrbns,Contributions & Donations,10-Dec-21,2122/09,SME,N,
422255,BARHAM PARISH COUNCIL,579.15,Street & Major Road Cleansing,Contributions to other Bodies,01-Dec-21,2122/09,SME,N,
422256,BARKING PARISH COUNCIL,347.49,Street & Major Road Cleansing,Contributions to other Bodies,01-Dec-21,2122/09,SME,N,
356998,BARKING VILLAGE HALL MANAGEMENT COMMITTE,415,Suffolk Community Restart Fund,Grants,21-Dec-21,2122/09,SME,N,
422258,BOTESDALE PARISH COUNCIL,347.49,Street & Major Road Cleansing,Contributions to other Bodies,01-Dec-21,2122/09,SME,N,
422259,BRAMFORD PARISH COUNCIL,566.8,Street & Major Road Cleansing,Contributions to other Bodies,01-Dec-21,2122/09,SME,N,
422260,CLAYDON & WHITTON PARISH COUNCIL,"1,158.30",Street & Major Road Cleansing,Contributions to other Bodies,01-Dec-21,2122/09,SME,N,
356726,DEBENHAM PARISH COUNCIL,500,Grants & Contrbns,Contributions & Donations,10-Dec-21,2122/09,SME,N,
422261,DEBENHAM PARISH COUNCIL,"2,012.14",Street & Major Road Cleansing,Contributions to other Bodies,01-Dec-21,2122/09,SME,N,
422262,EYE TOWN COUNCIL,"2,316.60",Street & Major Road Cleansing,Contributions to other Bodies,01-Dec-21,2122/09,SME,N,
422263,FRESSINGFIELD PARISH COUNCIL,510.12,Street & Major Road Cleansing,Contributions to other Bodies,01-Dec-21,2122/09,SME,N,
356728,GOSBECK PARISH COUNCIL,599,Grants & Contrbns,Contributions & Donations,10-Dec-21,2122/09,SME,N,
356838,GREAT ASHFIELD PARISH COUNCIL,"1,000.00",Grants & Contrbns,Contributions & Donations,15-Dec-21,2122/09,SME,N,
356927,GREAT ASHFIELD PARISH COUNCIL,332,Grants & Contrbns,Contributions & Donations,20-Dec-21,2122/09,SME,N,
422264,GREAT BLAKENHAM PARISH COUNCIL,"1,133.60",Street & Major Road Cleansing,Contributions to other Bodies,01-Dec-21,2122/09,SME,N,
422266,HARLESTON PARISH MEETING,579.15,Street & Major Road Cleansing,Contributions to other Bodies,01-Dec-21,2122/09,SME,N,
422267,HAUGHLEY PARISH COUNCIL,579.15,Street & Major Road Cleansing,Contributions to other Bodies,01-Dec-21,2122/09,SME,N,
422269,HOXNE PARISH COUNCIL,579.15,Street & Major Road Cleansing,Contributions to other Bodies,01-Dec-21,2122/09,SME,N,
422271,MENDLESHAM PARISH COUNCIL,405.41,Street & Major Road Cleansing,Contributions to other Bodies,01-Dec-21,2122/09,SME,N,
356739,METFIELD PARISH COUNCIL,990,Grants & Contrbns,Contributions & Donations,10-Dec-21,2122/09,SME,N,
356738,METFIELD VILLAGE HALL,300,Grants & Contrbns,Contributions & Donations,10-Dec-21,2122/09,SME,N,
356727,MID SUFFOLK AXIS,300,Grants & Contrbns,Contributions & Donations,10-Dec-21,2122/09,SME,N,
356716,ORCHESTRAS LIVE,"3,223.00",Policy & Strategy (H & W),Contributions & Donations,10-Dec-21,2122/09,SME,N,
422274,RICKINGHALL INFERIOR AND RICKINGHALL SUP,463.32,Street & Major Road Cleansing,Contributions to other Bodies,01-Dec-21,2122/09,SME,N,
356411,STOWMARKET MEADLANDS RECREATION CLUB,"2,500.00",Suffolk Community Restart Fund,Grants,29-Nov-21,2122/09,SME,N,
422276,STOWUPLAND PARISH COUNCIL,810.81,Street & Major Road Cleansing,Contributions to other Bodies,01-Dec-21,2122/09,SME,N,
422277,STRADBROKE PARISH COUNCIL,984.56,Street & Major Road Cleansing,Contributions to other Bodies,01-Dec-21,2122/09,SME,N,
356413,THORNHAM PARISH HALL,"1,760.00",Suffolk Community Restart Fund,Grants,29-Nov-21,2122/09,SME,N,
356861,THURSTON PARISH COUNCIL,620,Grants & Contrbns,Contributions & Donations,16-Dec-21,2122/09,SME,N,
422278,THURSTON PARISH COUNCIL,775.17,Street & Major Road Cleansing,Contributions to other Bodies,01-Dec-21,2122/09,SME,N,
422280,WETHERDEN PARISH COUNCIL,347.49,Street & Major Road Cleansing,Contributions to other Bodies,01-Dec-21,2122/09,SME,N,
422281,WOOLPIT PARISH COUNCIL,694.98,Street & Major Road Cleansing,Contributions to other Bodies,01-Dec-21,2122/09,SME,N,
354132,SUFFOLK COUNTY COUNCIL,"2,716.72",Organisational Devt,Contracted Services,10-Aug-21,2122/09,LGE,Y,50%
354145,SUFFOLK COUNTY COUNCIL,"2,782.50",Organisational Devt,Contracted Services,11-Aug-21,2122/09,LGE,Y,50%
354248,SUFFOLK COUNTY COUNCIL,"3,062.75",Organisational Devt,Contracted Services,18-Aug-21,2122/09,LGE,Y,50%
354559,SUFFOLK COUNTY COUNCIL,"5,272.00",Organisational Devt,Contracted Services,01-Sep-21,2122/09,LGE,Y,50%
354560,SUFFOLK COUNTY COUNCIL,325,Organisational Devt,Contracted Services,01-Sep-21,2122/09,LGE,Y,50%
354728,SUFFOLK COUNTY COUNCIL,590.25,Organisational Devt,Contracted Services,09-Sep-21,2122/09,LGE,Y,50%
354927,SUFFOLK COUNTY COUNCIL,785,Organisational Devt,Contracted Services,21-Sep-21,2122/09,LGE,Y,50%
355426,SUFFOLK COUNTY COUNCIL,"2,510.50",Organisational Devt,Contracted Services,12-Oct-21,2122/09,LGE,Y,50%
355926,SUFFOLK COUNTY COUNCIL,770.75,Organisational Devt,Recruitment,04-Nov-21,2122/09,LGE,Y,50%
356380,SUFFOLK COUNTY COUNCIL,472.5,Taxi & Private Hire Licensing,Prof & Consultancy Fees,26-Nov-21,2122/09,LGE,N,
356487,SUFFOLK COUNTY COUNCIL,"1,914.00",Health & Safety,Furniture,30-Nov-21,2122/09,LGE,Y,50%
356564,SUFFOLK COUNTY COUNCIL,"50,636.15",Trade Waste,Trade Waste Disposal,03-Dec-21,2122/09,LGE,N,
356609,SUFFOLK COUNTY COUNCIL,600,Communications,Advertising&mkting (non-staff),07-Dec-21,2122/09,LGE,Y,50%
356676,SUFFOLK COUNTY COUNCIL,"7,000.00",Devt Management - Apps,Subscriptions,08-Dec-21,2122/09,LGE,Y,50%
356677,SUFFOLK COUNTY COUNCIL,"1,795.00",Land Chgs,Contracted Services,08-Dec-21,2122/09,LGE,N,
356916,SUFFOLK COUNTY COUNCIL,"1,500.00",Policy & Strategy (H & W),Contributions & Donations,17-Dec-21,2122/09,LGE,N,
356600,STOWMARKET TOWN COUNCIL,354.42,Grants & Contrbns,Contributions & Donations,07-Dec-21,2122/09,SME,N,
356381,KENNET EQUIPMENT LEASING,283.05,Creeting Rd Depot,Operating Lease Payments,29-Nov-21,2122/09,SME,Y,50%
356273,SERENA'S KITCHEN,480,General Rechargeable Works,Misc Income,21-Nov-21,2122/09,SME,N,
356560,CIVICA UK LIMITED,"1,572.00",Governance,Desktop Software,30-Nov-21,2122/09,LGE,Y,50%
422300,GAZPROM ENERGY,15.01,"11 Market Place, Stowmarket",Gas,14-Dec-21,2122/09,SME,N,
422300,GAZPROM ENERGY,187.36,Creeting Rd Depot,Gas,14-Dec-21,2122/09,SME,Y,50%
422300,GAZPROM ENERGY,26.99,Headquarters General,Gas,14-Dec-21,2122/09,SME,N,
422300,GAZPROM ENERGY,"15,398.40",Leisure Contract,Gas,14-Dec-21,2122/09,SME,N,
422300,GAZPROM ENERGY,63.66,Pure Gym & Adjacent Building,Gas,14-Dec-21,2122/09,SME,N,
422300,GAZPROM ENERGY,"4,029.81",Sheltered Accommodation,Gas,14-Dec-21,2122/09,SME,N,
422300,GAZPROM ENERGY,403.46,Temporary Accommodation,Gas,14-Dec-21,2122/09,SME,N,
422300,GAZPROM ENERGY,369.06,Tenancy Services,Gas,14-Dec-21,2122/09,SME,N,
356285,PREMIER BODYWORKS,"1,224.56",Open Spaces,Plant & Vehicle - Other costs,23-Nov-21,2122/09,SME,N,
356299,PREMIER BODYWORKS,"1,302.67",Open Spaces,Plant & Vehicle - Other costs,19-Nov-21,2122/09,SME,N,
356163,ERNEST DOE & SONS LTD,"9,932.72",Vehicle and Plant Renewals,Plant & Vehicle - Purchase,15-Nov-21,2122/09,LGE,N,
356239,WHYBROW PROPERTY SOLUTIONS LTD,"6,974.19",Roads and Paths,Improvements,22-Oct-21,2122/09,SME,N,
356533,WHYBROW PROPERTY SOLUTIONS LTD,"10,675.00",Council House Adaptions,Improvements,02-Dec-21,2122/09,SME,N,
356534,WHYBROW PROPERTY SOLUTIONS LTD,"10,219.61",Major Imps,Major Contracts,02-Dec-21,2122/09,SME,N,
356288,L A C CLEANING CONTRACTORS LIMITED,798.41,Temporary Accommodation,General Cleaning,22-Nov-21,2122/09,SME,N,
356289,L A C CLEANING CONTRACTORS LIMITED,"1,810.00",Building Services,Repairs,24-Nov-21,2122/09,SME,N,
356445,L A C CLEANING CONTRACTORS LIMITED,420,Building Services,Repairs,12-May-21,2122/09,SME,N,
357013,L A C CLEANING CONTRACTORS LIMITED,798.41,Temporary Accommodation,General Cleaning,20-Dec-21,2122/09,SME,N,
356771,ARMSTRONG YORK ASBESTOS ENVIRONMENTAL,"7,956.44",Asbestos Survey & Reinspection,Prof & Consultancy Fees,30-Nov-21,2122/09,SME,N,
356410,WOOLPIT CRICKET CLUB,"2,500.00",Suffolk Community Restart Fund,Grants,29-Nov-21,2122/09,SME,N,
356596,ADSO - ASSOCIATION OF DEMOCRATIC SERVICE,327.25,Governance,Subscriptions,26-Oct-21,2122/09,SME,Y,50%
356737,THE MIX STOWMARKET LTD,"7,350.00",Grants & Contrbns,Contributions & Donations,10-Dec-21,2122/09,SME,N,
356664,ORSIS UK LTD,"4,947.60",PV Panels,Contracted Services,09-Dec-21,2122/09,SME,N,
356491,DALROD (UK) LTD,900,Creeting Rd Depot,Grounds & Site Maintenance,01-Dec-21,2122/09,SME,Y,50%
356389,OPUS PEOPLE SOLUTIONS LTD,"1,083.24",Current Liabilities,Agency Staff Holding A/C,25-Nov-21,2122/09,SME,Y,14.50%
356594,OPUS PEOPLE SOLUTIONS LTD,"1,519.14",Current Liabilities,Agency Staff Holding A/C,02-Dec-21,2122/09,SME,Y,15%
356766,OPUS PEOPLE SOLUTIONS LTD,"1,149.58",Current Liabilities,Agency Staff Holding A/C,09-Dec-21,2122/09,SME,N,
356922,OPUS PEOPLE SOLUTIONS LTD,"1,096.94",Current Liabilities,Agency Staff Holding A/C,16-Dec-21,2122/09,SME,N,
356412,MENDLESHAM FOOTBALL CLUB,350,Suffolk Community Restart Fund,Grants,29-Nov-21,2122/09,SME,N,
356792,4PRINCIPLES CONSTRUCTION LTD,"4,921.01",Mand Disabled Facilities Grant,Grants,14-Dec-21,2122/09,SME,N,
356461,MATT ALLMAN LTD T/A MOVEITCLEARITFINDIT,695.83,Homelessness Private Sector,Removal Expenses,30-Nov-21,2122/09,SME,N,
356714,MATT ALLMAN LTD T/A MOVEITCLEARITFINDIT,"1,200.00",Homelessness Private Sector,Removal Expenses,10-Dec-21,2122/09,SME,N,
356091,DESTINATION RESEARCH  LTD,"1,800.00",Tourism General,Prof & Consultancy Fees,11-Nov-21,2122/09,SME,Y,50%
356370,GALLAGHER CAR & VAN RENTALS LTD,"1,700.00",Domestic Waste,Refuse Contract,26-Nov-21,2122/09,LGE,N,
356383,GALLAGHER CAR & VAN RENTALS LTD,"1,100.00",Domestic Waste,Refuse Contract,29-Nov-21,2122/09,LGE,N,
356409,1ST EYE SCOUT GROUP,464.27,Suffolk Community Restart Fund,Grants,29-Nov-21,2122/09,SME,N,
356803,REDLINGFIELD VILLAGE AMENITIES LTD,"1,500.00",Grants & Contrbns,Contributions & Donations,14-Dec-21,2122/09,SME,N,
356994,CLAYDON FOOTBALL CLUB,"5,698.00",Community Fund Projects-Grants,Grants,21-Dec-21,2122/09,SME,N,
356842,STOWUPLAND PRE SCHOOL & THE MIGHTY OAKS,512.42,Grants & Contrbns,Contributions & Donations,15-Dec-21,2122/09,SME,N,
356414,YAXLEY COMMUNITY CENTRE,"2,086.40",Community Fund Projects-Grants,Grants,29-Nov-21,2122/09,SME,N,
356844,MENDLESHAM MEDICAL GROUP,"4,927.64",CIL Funded REFCUS,Grants,16-Dec-21,2122/09,SME,N,
356914,ADVANCE SUPPLIES,"1,032.90",Temporary Accommodation,Cleaning Materials,17-Dec-21,2122/09,SME,N,
356793,RICHARD UTTING ASSOCIATES LLP,"1,293.23","Green Road, Woolpit",Prof & Consultancy Fees,30-Nov-21,2122/09,SME,N,
356918,RICHARD UTTING ASSOCIATES LLP,"2,055.00",Eves Meadow Haughley S106,Prof & Consultancy Fees,17-Dec-21,2122/09,SME,N,
356524,MANSION HOUSE PUBLISHING LTD,262.5,RHSSF,Advertising&mkting (non-staff),29-Nov-21,2122/09,SME,N,
356996,LAXFIELD VILLAGE HALL,"1,905.00",Suffolk Community Restart Fund,Grants,21-Dec-21,2122/09,SME,N,
356480,PUBLIC SEWER SERVICES,723.44,Building Services,Repairs,30-Nov-21,2122/09,SME,N,
356845,QSP LIMITED,281.99,Jnt Waste Contract,Training,23-Nov-21,2122/09,SME,Y,50%
356615,THE STOWMARKET GLASS COMPANY LTD,409.7,Building Services,Repairs,25-Nov-21,2122/09,SME,N,
356617,THE STOWMARKET GLASS COMPANY LTD,912,Building Services,Repairs,30-Nov-21,2122/09,SME,N,
356619,THE STOWMARKET GLASS COMPANY LTD,"1,185.04",Building Services,Repairs,03-Nov-21,2122/09,SME,N,
356624,THE STOWMARKET GLASS COMPANY LTD,117.25,Building Services,Repairs,12-Nov-21,2122/09,SME,N,
356624,THE STOWMARKET GLASS COMPANY LTD,351.75,Building Services,Repairs,12-Nov-21,2122/09,SME,N,
356784,ASPECT CONTRACTS LTD,"2,575.00",Asbestos,Improvements,14-Dec-21,2122/09,LGE,N,
356561,THE OFFSHOOT FOUNDATION,"3,175.00",BRRP - Successful & Skilled,Prof & Consultancy Fees,06-Dec-21,2122/09,SME,N,
356259,SUPERSTRUCTURES LTD,475,Structural Works,Prof & Consultancy Fees,22-Nov-21,2122/09,SME,N,
422288,RIX PETROLEUM (EAST ANGLIA) LTD,"7,672.96",Open Spaces,Plant & Vehicle Fuel,02-Dec-21,2122/09,SME,N,
356905,SUDBURY PRINT GROUP LTD,677,Wellbeing CCG Funding,"Equipment, Tools & Materials",17-Dec-21,2122/09,SME,Y,50%
356279,NORTHUMBRIAN WATER LTD,28.9,Cedars Park,Legionella Testing,24-Nov-21,2122/09,LGE,N,
356279,NORTHUMBRIAN WATER LTD,18.9,Creeting Rd Depot,Legionella Testing,24-Nov-21,2122/09,LGE,Y,50%
356279,NORTHUMBRIAN WATER LTD,34.15,Headquarters General,Legionella Testing,24-Nov-21,2122/09,LGE,N,
356279,NORTHUMBRIAN WATER LTD,28.9,Leisure Contract,Legionella Testing,24-Nov-21,2122/09,LGE,N,
356279,NORTHUMBRIAN WATER LTD,183.9,Open Spaces,Legionella Testing,24-Nov-21,2122/09,LGE,N,
356279,NORTHUMBRIAN WATER LTD,34.15,Other HRA Temp Accommodation,Legionella Testing,24-Nov-21,2122/09,LGE,N,
356279,NORTHUMBRIAN WATER LTD,68.3,Public Conveniences,Legionella Testing,24-Nov-21,2122/09,LGE,N,
356279,NORTHUMBRIAN WATER LTD,470.25,Responsive maintenance,Legionella Testing,24-Nov-21,2122/09,LGE,N,
356279,NORTHUMBRIAN WATER LTD,438.7,Sheltered Accommodation,Legionella Testing,24-Nov-21,2122/09,LGE,N,
356279,NORTHUMBRIAN WATER LTD,34.15,Temporary Accommodation,Legionella Testing,24-Nov-21,2122/09,LGE,N,
356279,NORTHUMBRIAN WATER LTD,63.05,Wingfield Barns,Legionella Testing,24-Nov-21,2122/09,LGE,N,
356280,NORTHUMBRIAN WATER LTD,"1,280.79",Sheltered Accommodation,Legionella Testing,24-Nov-21,2122/09,LGE,N,
356280,NORTHUMBRIAN WATER LTD,37.45,Tenancy Services,Legionella Testing,24-Nov-21,2122/09,LGE,N,
356450,GIPPING OCCUPATIONAL HEALTH LTD,340,Organisational Devt,Contracted Services,30-Nov-21,2122/09,SME,Y,50%
356710,GIPPING OCCUPATIONAL HEALTH LTD,600,Health & Safety,Contracted Services,08-Dec-21,2122/09,SME,N,
356602,PARK AVENUE RECRUITMENT LTD,"1,804.00",Devt Management - Apps,Prof & Consultancy Fees,07-Dec-21,2122/09,SME,Y,45%
356872,TAYLORS FLOORING & FURNITURE,459,Sheltered Accommodation,"Equipment, Tools & Materials",16-Dec-21,2122/09,SME,N,
356607,RESIDENTIALLY CHARTERED SURVEYORS,350,Needham HQ S106 Units,Prof & Consultancy Fees,30-Nov-21,2122/09,SME,N,
357018,RESIDENTIALLY CHARTERED SURVEYORS,900,"Back Hills, Botesdale, S106",Prof & Consultancy Fees,22-Dec-21,2122/09,SME,N,
357027,RESIDENTIALLY CHARTERED SURVEYORS,800,Eves Meadow Haughley S106,Prof & Consultancy Fees,22-Dec-21,2122/09,SME,N,
356443,TOP FLOORS (EAST ANGLIA) LTD,319.09,Building Services,Repairs,17-Nov-21,2122/09,SME,N,
356475,TOP FLOORS (EAST ANGLIA) LTD,982.59,Afghan Resettlement Programme,Furniture,24-Nov-21,2122/09,SME,N,
356476,TOP FLOORS (EAST ANGLIA) LTD,"1,200.83",Afghan Resettlement Programme,Furniture,24-Nov-21,2122/09,SME,N,
356694,LICENCE CHECK LTD,962.5,Health & Safety,Contracted Services,25-Nov-21,2122/09,SME,Y,50%
356700,ICENI,"1,857.90","Back Hills, Botesdale, S106",Prof & Consultancy Fees,09-Dec-21,2122/09,SME,N,
356701,ICENI,"2,421.12",Eves Meadow Haughley S106,Prof & Consultancy Fees,09-Dec-21,2122/09,SME,N,
356729,RATTLESDEN COMMUNITY COUNCIL,"3,000.00",Grants & Contrbns,Contributions & Donations,10-Dec-21,2122/09,SME,N,
356835,AQUAM WATER SERVICES LTD,"1,300.00",Street & Major Road Cleansing,Electricity,06-Dec-21,2122/09,SME,N,
356463,PORTAL PLAN QUEST LTD,462,Devt Management - Apps,Planning Fees,01-Dec-21,2122/09,SME,N,
356874,PORTAL PLAN QUEST LTD,462,Devt Management - Apps,Planning Fees,17-Dec-21,2122/09,SME,N,
356671,ABBEYCROFT LEISURE,"1,602.00",Policy & Strategy (H & W),Contributions & Donations,09-Dec-21,2122/09,LGE,N,
356719,SOLACE IN BUSINESS,"13,200.00",Bus Imp (Corp),Agency Staff,10-Dec-21,2122/09,SME,Y,50%
356121,GOVERNMENT EVENTS,578,Capita System Support,Training,30-Sep-21,2122/09,SME,Y,50%
356557,SUFFOLK POWER EQUIPMENT,960.6,Open Spaces,Plant & Vehicle - Other costs,06-Dec-21,2122/09,ST,N,
356592,3 POINT PROPERTY MANAGEMENT LTD,675,Guaranteed Rent Scheme,Rent Payable,07-Dec-21,2122/09,SME,N,
356769,IMAX TRAINING LTD,990,Organisational Devt,Training,20-Jan-19,2122/09,SME,Y,50%
422291,FLAGSHIP HOUSING GROUP LTD-RENT ACCOUNT,"1,548.94",Homeless Prevention Fund,Misc Supplies & Services Costs,08-Dec-21,2122/09,LGE,N,
356995,EAST SUFFOLK COUNCIL,"2,500.00",Independent Living Service,Contributions & Donations,20-Dec-21,2122/09,LGE,N,
356987,DG ACCESSIBLE DESIGNS,"1,375.73",Mand Disabled Facilities Grant,Grants,21-Dec-21,2122/09,SME,N,
357012,GREAT BLAKENHAM PARISH ROOM,815,Suffolk Community Restart Fund,Grants,22-Dec-21,2122/09,SME,N,
356501,WASHCO LTD,467,Sheltered Accommodation,"Equipment, Tools & Materials",01-Dec-21,2122/09,SME,N,
356061,ANGLIA COMMERCIAL FLOORING LTD,272.88,Building Services,Repairs,10-Nov-21,2122/09,SME,N,
422292,ANGLIAN WATER BUS (NAT) LTD T/A WAVE,24.97,"11 Market Place, Stowmarket",Water Rates - Metered,12-Dec-21,2122/09,LGE,N,
422292,ANGLIAN WATER BUS (NAT) LTD T/A WAVE,614.75,Creeting Rd Depot,Water Rates - Metered,12-Dec-21,2122/09,LGE,Y,50%
422292,ANGLIAN WATER BUS (NAT) LTD T/A WAVE,30.15,General/Supervision & Mgmt,Water Rates - Metered,12-Dec-21,2122/09,LGE,N,
422292,ANGLIAN WATER BUS (NAT) LTD T/A WAVE,127.09,Headquarters General,Water Rates - Metered,12-Dec-21,2122/09,LGE,N,
422292,ANGLIAN WATER BUS (NAT) LTD T/A WAVE,118.47,Open Spaces,Water Rates - Metered,12-Dec-21,2122/09,LGE,N,
422292,ANGLIAN WATER BUS (NAT) LTD T/A WAVE,249.88,Public Conveniences,Water Rates - Metered,12-Dec-21,2122/09,LGE,N,
422292,ANGLIAN WATER BUS (NAT) LTD T/A WAVE,3.9,Recycling Centre,Water Rates - Metered,12-Dec-21,2122/09,LGE,N,
422292,ANGLIAN WATER BUS (NAT) LTD T/A WAVE,3.9,Sewage Treatment Works,Water Rates - Metered,12-Dec-21,2122/09,LGE,N,
422292,ANGLIAN WATER BUS (NAT) LTD T/A WAVE,"1,655.76",Sheltered Accommodation,Water Rates - Metered,12-Dec-21,2122/09,LGE,N,
422292,ANGLIAN WATER BUS (NAT) LTD T/A WAVE,42.85,Temporary Accommodation,Water Rates - Metered,12-Dec-21,2122/09,LGE,N,
422292,ANGLIAN WATER BUS (NAT) LTD T/A WAVE,36.9,Tenancy Services,Water Rates - Metered,12-Dec-21,2122/09,LGE,N,
422292,ANGLIAN WATER BUS (NAT) LTD T/A WAVE,18.12,Wingfield Barns,Water Rates - Metered,12-Dec-21,2122/09,LGE,N,
356585,PARKYNS LETTINGS BURY ST EDMUNDS,650,Guaranteed Rent Scheme,Rent Payable,07-Dec-21,2122/09,SME,N,
422297,IMSERV EUROPE LTD,117.55,"11 Market Place, Stowmarket",Electricity,17-Dec-21,2122/09,LGE,N,
422297,IMSERV EUROPE LTD,99.69,Climate Change and Sustainabil,Electricity,17-Dec-21,2122/09,LGE,N,
422297,IMSERV EUROPE LTD,117.55,Creeting Rd Depot,Electricity,17-Dec-21,2122/09,LGE,Y,50%
422297,IMSERV EUROPE LTD,117.55,Needham Market Middle School,Electricity,17-Dec-21,2122/09,LGE,N,
422297,IMSERV EUROPE LTD,352.65,Open Spaces,Electricity,17-Dec-21,2122/09,LGE,N,
422297,IMSERV EUROPE LTD,17.86,Other HRA Temp Accommodation,Electricity,17-Dec-21,2122/09,LGE,N,
422297,IMSERV EUROPE LTD,117.55,Public Conveniences,Electricity,17-Dec-21,2122/09,LGE,N,
422297,IMSERV EUROPE LTD,272.48,Pure Gym & Adjacent Building,Electricity,17-Dec-21,2122/09,LGE,N,
422297,IMSERV EUROPE LTD,117.55,Recycling Centre,Electricity,17-Dec-21,2122/09,LGE,N,
422297,IMSERV EUROPE LTD,940.4,Sewage Treatment Works,Electricity,17-Dec-21,2122/09,LGE,N,
422297,IMSERV EUROPE LTD,"1,954.57",Sheltered Accommodation,Electricity,17-Dec-21,2122/09,LGE,N,
422297,IMSERV EUROPE LTD,214.2,Stowmarket Middle School,Electricity,17-Dec-21,2122/09,LGE,N,
422297,IMSERV EUROPE LTD,840.71,Temporary Accommodation,Electricity,17-Dec-21,2122/09,LGE,N,
422297,IMSERV EUROPE LTD,"2,721.51",Tenancy Services,Electricity,17-Dec-21,2122/09,LGE,N,
422297,IMSERV EUROPE LTD,214,Wingfield Barns,Electricity,17-Dec-21,2122/09,LGE,N,
356748,ALBION COMPUTERS PLC,"4,836.70",Devt Management - Apps,Computer Equpt Purchases,07-Dec-21,2122/09,SME,Y,45%
356272,ENERGY ASSETS LTD,621.53,Needham Market Middle School,Improvements,11-Nov-21,2122/09,LGE,N,
356282,SKY HIGH ACCESS LTD,560,Open Spaces,"Equipment, Tools & Materials",19-Nov-21,2122/09,SME,N,
356188,GREENACRE RECRUITMENT LTD,"1,145.35",Housing Standards,Agency Staff,17-Nov-21,2122/09,SME,Y,50%
356479,GREENACRE RECRUITMENT LTD,"1,244.65",Housing Standards,Agency Staff,01-Dec-21,2122/09,SME,Y,50%
356631,GREENACRE RECRUITMENT LTD,"2,361.75",Housing Standards,Agency Staff,08-Dec-21,2122/09,SME,Y,50%
356305,MID SUFFOLK GROWTH LTD,"46,355.05",Regen Fund - HQ Sites,Prof & Consultancy Fees,23-Nov-21,2122/09,SME,N,
356306,MID SUFFOLK GROWTH LTD,"60,993.49",Needham HQ S106 Units,Purchase of Land & Buildings,24-Nov-21,2122/09,SME,N,
356910,MID SUFFOLK GROWTH LTD,"58,610.13",Regen Fund - HQ Sites,Prof & Consultancy Fees,16-Dec-21,2122/09,SME,N,
356912,MID SUFFOLK GROWTH LTD,"77,118.60",Needham HQ S106 Units,Purchase of Land & Buildings,17-Dec-21,2122/09,SME,N,
356871,WATERLOGIC,641.58,Creeting Rd Depot,Contracted Services,15-Dec-21,2122/09,LGE,Y,50%
356732,CLAYDON & BARHAM RECREATION GROUNDS,"2,000.00",Grants & Contrbns,Contributions & Donations,10-Dec-21,2122/09,SME,N,
356930,PENTACO CONSTRUCTION LTD,"233,010.00",Stowmarket Middle School,Prof & Consultancy Fees,14-Dec-21,2122/09,SME,N,
356601,1ST NEEDHAM MARKET SCOUT GROUP,"2,500.00",Grants & Contrbns,Contributions & Donations,07-Dec-21,2122/09,SME,N,
356562,BRANDON WETROOMS,"5,207.75",Mand Disabled Facilities Grant,Grants,06-Dec-21,2122/09,SME,N,
356821,THE KINETIC SCIENCE FOUNDATION,750,BRRP - Successful & Skilled,Prof & Consultancy Fees,13-Dec-21,2122/09,SME,N,
356711,EYES OPEN CIC,"5,764.00",Holiday Activity Fund,"Equipment, Tools & Materials",06-Dec-21,2122/09,SME,N,
356862,NORTON PRE SCHOOL,"1,480.00",Grants & Contrbns,Contributions & Donations,16-Dec-21,2122/09,SME,N,
356962,LIMELEASE LTD,395,Guaranteed Rent Scheme,Rent Payable,21-Dec-21,2122/09,SME,N,
356415,EYE PLAYING FIELDS ASSOCIATION,"23,440.00",Community Fund Projects-Grants,Grants,29-Nov-21,2122/09,SME,N,
356508,EYE PLAYING FIELDS ASSOCIATION,"31,605.60",CIL Funded REFCUS,Grants,02-Dec-21,2122/09,SME,N,
356804,NEEDHAM PHOENIX FOOTBALL CLUB,600,Grants & Contrbns,Contributions & Donations,14-Dec-21,2122/09,SME,N,
356722,GIPPING CONSTRUCTION LTD,"17,256.78",Regen Fund - HQ Sites,Prof & Consultancy Fees,29-Nov-21,2122/09,SME,N,
356722,GIPPING CONSTRUCTION LTD,"225,922.22",Needham Market Middle School,Prof & Consultancy Fees,29-Nov-21,2122/09,SME,N,
356954,GIPPING CONSTRUCTION LTD,"6,756.17",Regen Fund - HQ Sites,Prof & Consultancy Fees,29-Nov-21,2122/09,SME,N,
356954,GIPPING CONSTRUCTION LTD,"88,450.30",Needham Market Middle School,Prof & Consultancy Fees,29-Nov-21,2122/09,SME,N,
357001,GIPPING CONSTRUCTION LTD,"18,757.37",Regen Fund - HQ Sites,Prof & Consultancy Fees,20-Dec-21,2122/09,SME,N,
357001,GIPPING CONSTRUCTION LTD,"245,567.63",Needham Market Middle School,Prof & Consultancy Fees,20-Dec-21,2122/09,SME,N,
356343,CAPITA BUSINESS SERVICES LTD (PAY360),"4,344.70",Bank Chgs,Bank Charges,25-Nov-21,2122/09,LGE,N,
356709,CAPITA BUSINESS SERVICES LTD (PAY360),"4,106.09",Bank Chgs,Bank Charges,09-Dec-21,2122/09,LGE,N,
356745,PRIVATE LANDLORD,786.5,Guaranteed Rent Scheme,Rent Payable,13-Dec-21,2122/09,ST,N,
356864,FRIENDS OF OLD NEWTON SCHOOL ASSOCIATON,350,Grants & Contrbns,Contributions & Donations,16-Dec-21,2122/09,SME,N,
356806,MISS S SIMMONDS,300,Communications,Advertising&mkting (non-staff),14-Dec-21,2122/09,ST,Y,50%
356908,AFFINITY HEALTH AT WORK LTD,"3,600.00",Organisational Devt,Training,17-Dec-21,2122/09,SME,Y,50%
356638,STUDENT LIFE,"1,000.00",Policy & Strategy (H & W),Contributions & Donations,08-Dec-21,2122/09,SME,N,
356999,DAVID KNIGHTS T/A DAVID BROWN,400,Assets & Development,Prof & Consultancy Fees,21-Dec-21,2122/09,ST,N,
356510,CORENERGY LIMITED,"76,324.00",Public Sector Decarbonisation,Contracted Services,30-Nov-21,2122/09,SME,N,
356511,CORENERGY LIMITED,"25,983.00",Public Sector Decarbonisation,Contracted Services,30-Nov-21,2122/09,SME,N,
356743,PRIVATE LANDLORD,786.5,Guaranteed Rent Scheme,Rent Payable,13-Dec-21,2122/09,ST,N,
356799,BURGESS HOMES LTD,"206,716.50","Back Hills, Botesdale, S106",Prof & Consultancy Fees,05-Dec-21,2122/09,SME,N,
356773,TEMPLE LETTINGS,650,Guaranteed Rent Scheme,Rent Payable,14-Dec-21,2122/09,SME,N,
356451,DGL QUALITY MANAGEMENT LTD,870.76,Needham Market Middle School,Prof & Consultancy Fees,30-Nov-21,2122/09,SME,N,
356320,ARAN INSULATION LTD,"5,228.15",Insulation Imps,Improvements,25-Nov-21,2122/09,SME,N,
356512,ARAN INSULATION LTD,"5,847.24",Insulation Imps,Improvements,30-Nov-21,2122/09,SME,N,
356772,ARAN INSULATION LTD,"2,787.50",Insulation Imps,Improvements,13-Dec-21,2122/09,SME,N,
356275,TREECONOMICS LTD,"8,310.00",Open Spaces,Contracted Services,23-Nov-21,2122/09,SME,Y,50.50%
356736,PARISH MEETING OF HUNSTON,"1,000.00",Grants & Contrbns,Contributions & Donations,10-Dec-21,2122/09,SME,N,
356444,IAN BOOTH CONSULTANT ENGINEER LTD,"1,520.00",Strategic Assets,Prof & Consultancy Fees,30-Nov-21,2122/09,SME,N,
356418,MARCHDELL LTD,715,Guaranteed Rent Scheme,Rent Payable,30-Nov-21,2122/09,SME,N,
356640,E.ON NEXT,579.61,Other HRA Temp Accommodation,Heating Charges,21-Nov-21,2122/09,LGE,N,
356486,IPSERV LTD,327.42,Communications,Commercial Printing,01-Dec-21,2122/09,SME,N,
356486,IPSERV LTD,965.76,Central Printing,Commercial Printing,01-Dec-21,2122/09,SME,N,
356576,SSE,"1,121.86",Homeless Prevention Fund,Misc Supplies & Services Costs,13-Jan-21,2122/09,LGE,N,
356577,SSE,"1,000.48",Homeless Prevention Fund,Misc Supplies & Services Costs,06-Dec-21,2122/09,LGE,N,
356566,THE LEADERSHIP FACTOR LTD T/A TLF RESEAR,990,Organisational Devt,Training,19-Aug-21,2122/09,SME,Y,50%
356744,PRIVATE LANDLORD,669,Guaranteed Rent Scheme,Rent Payable,13-Dec-21,2122/09,ST,N,
356417,PRIVATE LANDLORD,650,Guaranteed Rent Scheme,Rent Payable,30-Nov-21,2122/09,ST,N,
356957,PRIVATE LANDLORD,650,Guaranteed Rent Scheme,Rent Payable,21-Dec-21,2122/09,ST,N,
356775,MK AUTOS MOT CENTRE LIMITED,300,Taxi & Private Hire Licensing,Contracted Services,30-Nov-21,2122/09,SME,N,
356523,SRL TECHNICAL SERVICES LTD,"3,525.00",Public Sector Decarbonisation,Prof & Consultancy Fees,29-Oct-21,2122/09,SME,N,
356590,ELDRIDGE MARRIOTT,495,Guaranteed Rent Scheme,Rent Payable,07-Dec-21,2122/09,SME,N,
356796,TINY TOES TODDLER GROUP,500,Grants & Contrbns,Contributions & Donations,14-Dec-21,2122/09,SME,N,
356363,PIXEL FINANCIAL MANAGEMENT LTD,"1,000.00",Financial Servs,Subscriptions,13-Oct-21,2122/09,SME,Y,50%
356549,SHJ HOMES LTD,500,Guaranteed Rent Scheme,Rent Payable,06-Dec-21,2122/09,SME,N,
356797,THURSTON C OF E PRIMARY ACADEMY,"1,000.00",Grants & Contrbns,Contributions & Donations,14-Dec-21,2122/09,SME,N,
356552,FLAMESKILL LTD,468.05,BRRP-InnovationClusterStowmkt,Annual Bldg Maint Contracts,20-Oct-21,2122/09,SME,N,
356565,LONDON SCHOOL OF MEDIATION LTD,"1,885.50",Organisational Devt,Training,03-Nov-21,2122/09,SME,Y,50%
356376,ENVIROAWARDS LTD,"3,295.00",Organisational Devt,Training,27-Nov-21,2122/09,SME,Y,50%
356798,SCREENPRINT & DISPLAY LTD,837.5,RHSSF,Advertising&mkting (non-staff),13-Dec-21,2122/09,SME,N,
356559,ADMIRAL HOME IMPROVEMENTS,"11,826.00",Renovation/Home Repair Grants,Grants,06-Dec-21,2122/09,SME,N,
356484,STOWMARKET CHRISTMAS TREE FESTIVAL,400,Grants & Contrbns,Contributions & Donations,01-Dec-21,2122/09,SME,N,
356520,APOLLO DESIGN,"6,995.00",Mand Disabled Facilities Grant,Grants,02-Dec-21,2122/09,SME,N,
356708,FOOTBALL FUN FACTORY (FRANCHISING) LTD,"1,560.00",Holiday Activity Fund,"Equipment, Tools & Materials",10-Dec-21,2122/09,SME,N,
356765,MRS ANGELA JOHNSON,"2,868.00",Current Liabilities,Developer Contributions,13-Dec-21,2122/09,ST,N,
356840,BARHAM PICNIC SITE COMMUNITY PROJECT,"2,000.00",Grants & Contrbns,Contributions & Donations,15-Dec-21,2122/09,SME,N,
356802,BARWOODS-BOTESDALE & RICKINGHALL,870,Grants & Contrbns,Contributions & Donations,14-Dec-21,2122/09,SME,N,
356805,HENLEY PRE SCHOOL CENTRE,"1,020.00",Grants & Contrbns,Contributions & Donations,14-Dec-21,2122/09,SME,N,
356837,HAUGHLEY UNITED YOUTH FOOTBALL CLUB,500,Grants & Contrbns,Contributions & Donations,15-Dec-21,2122/09,SME,N,
356863,MJL PLUMBING & HEATING SUFFOLK (LTD),"5,600.00",Mand Disabled Facilities Grant,Grants,16-Dec-21,2122/09,SME,N,
356900,MILL LANE ALLOTMENTS ASSOCIATION,480,Grants & Contrbns,Contributions & Donations,17-Dec-21,2122/09,SME,N,
356898,KING GEORGE PLAYING FIELD COMMITTEE,"5,000.00",CIL Funded REFCUS,Grants,16-Dec-21,2122/09,SME,N,
356899,KING GEORGE PLAYING FIELD COMMITTEE,"5,000.00",CIL Funded REFCUS,Grants,16-Dec-21,2122/09,SME,N,
356988,KING GEORGE PLAYING FIELD COMMITTEE,"2,700.00",Community Fund Projects-Grants,Grants,21-Dec-21,2122/09,SME,N,
356989,KING GEORGE PLAYING FIELD COMMITTEE,"2,700.00",Community Fund Projects-Grants,Grants,21-Dec-21,2122/09,SME,N,
357015,FIRESAFE (FIRE SAFETY MANAGEMENT) CONSUL,350,BRRP-InnovationClusterStowmkt,Annual Bldg Maint Contracts,22-Dec-21,2122/09,SME,N,
356929,SLM COMMUNITY LEISURE CHARITABLE TRUST,500,Grants & Contrbns,Contributions & Donations,20-Dec-21,2122/09,SME,N,
357002,MID SUFFOLK CROQUET CLUB,"2,500.00",Suffolk Community Restart Fund,Grants,21-Dec-21,2122/09,SME,N,
889,FORE-MOST GARAGE DOORS LTD,"-2,567.30",Building Services,Repairs,10-Dec-21,2122/09,SME,N,
356853,THOMPSON COOPER LTD,-803,Street & Major Road Cleansing,"Equipment, Tools & Materials",15-Dec-21,2122/09,SME,N,
356579,WORKWEAR (EAST ANGLIA) LTD,-71.9,Street & Major Road Cleansing,Protective clothing,26-Nov-21,2122/09,SME,N,
356639,BRITISH RED CROSS,-117,Organisational Devt,Health & Safety Training,03-Dec-21,2122/09,SME,Y,50%
356661,BRITISH RED CROSS,-117,Organisational Devt,Health & Safety Training,03-Nov-21,2122/09,SME,Y,50%
356580,A C LEIGH (NORWICH) LTD,-15.88,Building Services,"Equipment, Tools & Materials",11-Nov-21,2122/09,SME,N,
